Cogmind - Beta 16 @@@ ROGUE MODE // 2025.11.03 @ 22:01:59 Player: Darcyisverycute Result: Fortifying 0b10! Performance ------------- Evolutions (9) 4500 Regions Visited (33) 6600 Robots Destroyed (532) 2660 Value Destroyed (39166) 39166 Prototype IDs (88) 1760 Alien Tech Used (0) 0 Bonus (40188) 40188 TOTAL SCORE: 94874 Bonus ------- High Alert Combat Kills 12582 Follower Combat Kills 6251 Entered Garrisons 2000 Used RIF Installer 6500 Aligned with FarCom 300 Destroyed MAIN.C Guards 500 Met MAIN.C 5000 Destroyed MAIN.C Shell 5000 Win 3000 Friendly Fire -945 Cogmind --------- Core Integrity 262/1600 Matter 37/300 Energy 87/100 System Corruption 7% Temperature Cool (4) Movement Treading (295) Ox2 Location By MAIN.C's Side Parts ------- > --- POWER (3) -------- (None) > --- PROPULSION (7) --- Experimental Biometal Medium Treads High-density Centrium Leg High-density Centrium Leg High-density Centrium Leg High-density Centrium Leg Experimental Biometal Leg > --- UTILITY (11) ----- Experimental Cooling System Huge Storage Unit Spectral Analyzer Advanced Targeting Computer Experimental Core Analyzer Experimental Core Analyzer Improved Armor Integrity Analyzer Centrium Medium Armor Plating Centrium Medium Armor Plating Graphene Brace Advanced Dynamic Insulation System > --- WEAPON (4) ------- XL Autogun Subcomponent XL Autogun Subcomponent XL Autogun Subcomponent Helical Railgun > --- INVENTORY (25) --- Armored Treads Advanced Power Amplifier Advanced Cooling System Experimental Cooling System Experimental Coolant Injector Experimental Energy Well (600) Experimental Matter Compressor (0) Precision Energy Filter Enhanced Nova Cannon Advanced KE Penetrator Enhanced Hardcell Cannon Enhanced Hardcell Cannon Compact Linear Accelerator Graviton Cannon Graviton Cannon Advanced Remote Datajack Peak State ------------ > --- POWER ------------ Singularity Reactor > --- PROPULSION ------- Armored Treads Experimental Biometal Medium Treads High-density Centrium Leg High-density Centrium Leg High-density Centrium Leg High-density Centrium Leg Experimental Biometal Leg > --- UTILITY ---------- Huge Storage Unit Spectral Analyzer Experimental Core Analyzer Experimental Core Analyzer Heavy Regenerative Plating SHELL Armor Graphene Brace Experimental System Purifier > --- WEAPON ----------- Heavy Hardcell Cannon Graviton Cannon Graviton Cannon > --- INVENTORY -------- Advanced Power Amplifier Advanced Cooling System Experimental Cooling System Experimental Coolant Injector Experimental Energy Well Experimental Energy Well Advanced Matter Compressor Experimental Matter Compressor Matter Filter Precision Energy Filter Centrium Medium Armor Plating Enhanced Nova Cannon Enhanced Nova Cannon KE Penetrator Advanced KE Penetrator XL Autogun Array Linear Accelerator Enhanced Hardcell Cannon Enhanced Hardcell Cannon Compact Linear Accelerator Advanced Remote Datajack Portable AFG [Rating: 244] Favorites ----------- Power Light Quantum Reactor Engine Light Ion Engine Power Core Reinforced Fission Core Reactor Light Quantum Reactor Propulsion Armored Medium Treads Treads Armored Medium Treads Leg High-density Centrium Leg Wheel Armored Huge Wheel Hover Unit Gravmag System Utility High-capacity Storage Unit Device Advanced Cooling System Storage High-capacity Storage Unit Processor Core Analyzer Hackware Relay Coupler [NC] Protection SHELL Armor Weapon Enhanced Nova Cannon Energy Gun Lightning Gun Energy Cannon Enhanced Nova Cannon Ballistic Gun Assault Rifle Ballistic Cannon Compact Linear Accelerator Launcher Neutron Missile Launcher Special Weapon Advanced Remote Datajack Impact Weapon Heavy Hammer Slashing Weapon Power Sword Special Melee Weapon Advanced Datajack Build | -11 -10 -10 -10 -9 -8 -8 -8 -8 -7 -7 -7 -7 -6 -6 -6 -6 -5 -5 -4 -4 -4 -4 -4 -4 -3 -3 -3 -3 -3 -2 -2 -1 -1 ------- Run | Yrd Mat Min Exi Min Mat Gar Mat Gar Fac Was Fac Gar Fac Was Fac Gar Fac Gar Fac Was Fac Gar Fac Gar Res Gar Res Tes Gar Res Gar Acc Com Slots Evolved 18 | . . . . . 4 . . . 2 . . . 2 . . . 2 . 2 . . . . . 2 . . . . 2 . 2 . Power 2 | . . . . . . . . . . . . . . . . . 1 . . . . . . . . . . . . . . 1 . Propulsion 5 | . . . . . 1 . . . . . . . 1 . . . . . 1 . . . . . 1 . . . . 1 . . . Utility 9 | . . . . . 2 . . . 1 . . . 1 . . . 1 . 1 . . . . . 1 . . . . 1 . 1 . Weapon 2 | . . . . . 1 . . . 1 . . . . . . . . . . . . . . . . . . . . . . . . Parts Attached 430 | 7 3 1 4 1 12 23 19 16 2 8 10 14 5 2 7 9 16 12 45 7 8 6 1 21 1 15 10 11 12 5 21 9 87 Power 49 | 1 . . . . 2 1 1 . 1 1 . 1 . . . 1 1 1 6 . . 1 . 3 . 2 1 3 . . 3 2 17 Engine 8 | 1 . . . . 2 . 1 . . . . . . . . . . . . . . . . . . . . . . . . 2 2 Core 6 | . . . . . . 1 . . 1 . . . . . . . 1 1 2 . . . . . . . . . . . . . . Reactor 35 | . . . . . . . . . . 1 . 1 . . . 1 . . 4 . . 1 . 3 . 2 1 3 . . 3 . 15 Propulsion 73 | 2 . . 1 . 3 5 4 3 . . . 2 1 1 . 3 2 2 10 . 1 . . 2 1 1 1 2 6 . 4 1 15 Treads 51 | 2 . . 1 . 1 1 4 1 . . . 2 1 1 . 3 2 2 6 . 1 . . 2 1 1 1 1 5 . 3 1 8 Leg 14 | . . . . . . 1 . . . . . . . . . . . . 4 . . . . . . . . 1 . . 1 . 7 Wheel 3 | . . . . . 1 . . 2 . . . . . . . . . . . . . . . . . . . . . . . . . Hover 5 | . . . . . 1 3 . . . . . . . . . . . . . . . . . . . . . . 1 . . . . Flight . | . . . . . . . . . . . . . . . . . . . . . . . . . . . . . . . . . . Utility 203 | 2 2 . 3 . 2 8 11 8 1 5 9 8 4 1 5 5 7 6 19 3 5 5 1 12 . 9 5 3 2 4 8 5 35 Device 79 | 2 . . 1 . . 1 . . . 1 6 2 1 . 2 2 2 3 11 3 4 4 . 4 . 2 3 1 2 1 2 2 17 Storage 15 | . 1 . 2 . . . . 2 . . . 1 . . . 1 . . 1 . . . . . . 1 . . . 1 . 1 4 Processor 17 | . . . . . 1 1 1 . . . 1 2 1 . 1 . . . 1 . 1 . . . . . . . . . . 1 6 Hackware 67 | . . . . . 1 2 8 4 1 3 2 3 2 . 1 2 5 2 5 . . 1 1 6 . 6 2 . . 2 6 1 1 Protection 25 | . 1 . . . . 4 2 2 . 1 . . . 1 1 . . 1 1 . . . . 2 . . . 2 . . . . 7 Artifact . | . . . . . . . . . . . . . . . . . . . . . . . . . . . . . . . . . . Weapon 105 | 2 1 1 . 1 5 9 3 5 . 2 1 3 . . 2 . 6 3 10 4 2 . . 4 . 3 3 3 4 1 6 1 20 Energy Gun 16 | 1 . . . . 3 2 2 1 . . . . . . . . 1 . 2 . . . . . . 1 . . . . 2 1 . Energy Cannon 16 | . . . . . . . . . . 2 . . . . 2 . . 1 . 1 1 . . 3 . 1 1 . . . 3 . 1 Ballistic Gun 35 | 1 1 . . . 2 1 . 4 . . . 2 . . . . 2 2 4 1 . . . . . . 1 2 2 . . . 10 Ballistic Cannon 13 | . . . . . . . . . . . . . . . . . . . 1 . . . . . . 1 1 . 2 . . . 8 Launcher 8 | . . 1 . . . 4 . . . . 1 . . . . . . . . 1 1 . . . . . . . . . . . . Special Weapon 13 | . . . . 1 . 1 . . . . . 1 . . . . 3 . 1 1 . . . 1 . . . 1 . 1 1 . 1 Impact Weapon 1 | . . . . . . . 1 . . . . . . . . . . . . . . . . . . . . . . . . . . Slashing Weapon 1 | . . . . . . . . . . . . . . . . . . . 1 . . . . . . . . . . . . . . Piercing Weapon . | . . . . . . . . . . . . . . . . . . . . . . . . . . . . . . . . . . Special Melee Weapon 2 | . . . . . . 1 . . . . . . . . . . . . 1 . . . . . . . . . . . . . . Unidentified Prototypes 41 | . . . . . 3 . 1 . . 1 . . . . . 1 . . 2 1 2 . . . . . 1 4 1 . . . 24 Corrupted Parts 3 | . . . . . . . . . . 1 . . . . . . . . . . . . . . . . . . . . . . 2 System Corruption 19 | . . . . . . . . . . 7 . . . . . . . . . . . . . . . . . . . . . . 12 Parts Lost 113 | . . . . . 2 9 9 . . . 1 . . . 1 2 4 4 21 . 2 3 . 1 . 2 9 2 2 . 1 3 35 Power 23 | . . . . . 1 1 1 . . . . . . . . . . 2 5 . . . . . . . 3 1 . . 1 2 6 Propulsion 23 | . . . . . . 3 3 . . . . . . . . . . . 4 . . . . . . . 1 1 1 . . . 10 Utility 32 | . . . . . . 2 2 . . . . . . . . 1 1 1 6 . 2 2 . . . 2 2 . . . . 1 10 Weapon 35 | . . . . . 1 3 3 . . . 1 . . . 1 1 3 1 6 . . 1 . 1 . . 3 . 1 . . . 9 Highest Loss Streak 10 | . . . . . 1 4 3 . . . 1 . . . 1 1 1 1 6 . 2 3 . 1 . 1 6 1 1 . 1 1 10 To Critical Strikes 2 | . . . . . . . . . . . . . . . . . 1 . . . . . . . . . . . . . . . 1 Average Backups 13 | 2 8 14 13 15 15 15 11 13 14 14 11 11 12 13 11 11 12 12 12 12 11 12 13 14 14 14 12 12 12 13 13 13 16 Power . | . . . . 3 3 1 . . . . . . . . . . . . . 1 1 . 1 . . . . . . 1 . . 1 Propulsion . | 1 1 1 . . . . . 2 1 1 1 1 . . 1 1 1 1 . . 1 . . . . . 1 . . . . 1 1 Utility 8 | . 4 8 6 6 5 9 7 7 9 9 6 7 9 8 6 7 7 6 7 7 5 7 8 11 12 11 8 7 7 9 10 9 8 Weapon 3 | 1 3 4 5 5 6 4 3 2 3 4 3 3 3 4 3 2 2 4 4 2 3 4 4 2 2 2 2 3 2 3 2 2 4 Tool/Special . | . . . . . . . . . . . . . . . . . . . . . . . . . . . . . . . . . . Unused Backups 64 | . 2 . 3 . 4 10 . 2 1 . 5 3 . 1 1 3 1 . 1 2 . 2 . 4 . 2 . 1 3 . 4 . 9 Power 7 | . . . . . . 3 . . . . . . . . . . . . . 1 . 1 . 1 . . . . . . . . 1 Propulsion 9 | . 2 . . . 1 . . 1 1 . . 1 . . . . . . . . . . . . . . . . . . 1 . 2 Utility 41 | . . . 1 . 1 7 . 1 . . 5 2 . 1 1 3 1 . 1 1 . 1 . 2 . 2 . 1 3 . 3 . 4 Weapon 5 | . . . 2 . 1 . . . . . . . . . . . . . . . . . . 1 . . . . . . . . 1 Tool/Special 2 | . . . . . 1 . . . . . . . . . . . . . . . . . . . . . . . . . . . 1 Average Slot Usage (%) 83 | . 96 100 99 100 95 95 91 88 89 83 91 88 85 67 81 85 76 90 88 92 91 87 84 86 75 79 73 58 65 68 67 72 73 Engine 2 | . 14 14 14 14 6 6 . 9 3 . . . . . . . . . . . . . . . . . . . . . . 2 . Core 1 | . . . . . . 1 7 . 3 3 . . . . . . 4 4 1 5 5 2 5 2 . . . . . . . . . Reactor 5 | . . . . . . . . . . 3 7 7 6 6 6 6 5 1 7 5 5 7 5 7 9 9 7 7 9 8 8 6 9 Treads 16 | . 28 28 27 28 18 14 22 9 7 7 7 13 13 13 13 13 11 21 17 26 23 21 21 20 13 14 13 11 14 13 13 14 14 Wheel 1 | . . . . . 8 3 . 8 7 7 7 1 . . . . . . . . . . . . . . . . . . . . . Device 12 | . 8 14 14 14 11 2 . . . . 4 8 5 . 11 13 7 15 14 13 18 25 22 23 23 22 17 14 13 11 11 11 17 Storage 6 | . 11 14 14 14 9 9 9 9 7 7 7 9 6 6 6 7 5 8 6 5 5 5 5 5 4 4 4 4 4 4 4 4 4 Processor 2 | . . . . . 8 5 2 . . . 2 5 13 . 3 6 2 . 2 5 5 4 . . . . . . . . . . 2 Hackware 7 | . . . . . 5 12 15 13 13 10 22 10 12 6 6 7 8 8 12 10 7 . 8 4 4 8 12 4 . 5 4 12 2 Protection 3 | . 3 . . . . 6 4 12 15 10 . . . 5 5 2 4 3 1 . . . . 2 . . . 3 8 8 8 6 5 Energy Gun 1 | . 1 . . . 8 8 9 3 . . . . . . . . 3 1 1 . . . . . . . . . . . 1 1 . Energy Cannon 4 | . . . . . . . . . . 12 15 13 6 6 12 12 2 2 1 3 5 4 5 9 9 8 7 3 2 . 1 9 4 Ballistic Gun 7 | . 26 21 14 14 16 10 7 12 15 8 7 8 13 13 6 2 3 12 8 4 4 . . . . . . . 5 7 1 . 3 Launcher 1 | . . 6 14 2 . 3 1 . . . . . . . . 4 2 . . . 4 4 . 2 4 3 2 . . . . . . Special Weapon 3 | . . . . 11 1 . 6 3 5 7 6 6 6 6 6 3 7 4 1 4 4 5 5 3 4 4 3 1 . . 4 4 2 Peak Build Rating 244 | 9 9 11 18 18 29 44 41 49 53 73 64 70 86 92 94 93 111 108 120 128 132 135 121 151 161 172 169 178 178 178 188 189 244 Average Rating 106 | 5 7 10 16 16 25 31 34 45 51 63 62 65 81 91 88 89 102 92 107 125 126 129 117 130 160 166 156 159 157 174 177 179 198 On Entrance 89 | . 9 9 11 18 17 27 41 34 47 53 64 60 69 83 91 86 93 104 83 100 125 126 120 116 151 161 169 122 160 169 174 184 167 Avg Prop Armor Cover (%) 6 | . . . . . 16 7 . 9 6 4 8 7 . . . . . 4 7 . . 6 . . . . 11 7 1 . 1 1 3 Naked Turns . | . . . . . . . . . . . . . . . . . . . . . . . . . . . . . . . . . . Heaviest Build 240 | 8 28 30 50 50 53 63 67 67 70 122 79 86 76 119 126 99 133 131 130 134 137 126 116 160 140 143 141 139 166 170 182 181 240 Greatest Support 252 | 40 40 40 40 40 40 60 60 40 28 28 28 105 150 150 145 150 150 135 165 135 156 156 156 177 230 230 225 225 215 215 225 252 247 Greatest Overweight (x) 4 | . . . 1 1 3 3 3 2 2 4 2 3 . . . . 1 . 2 . 1 . . 1 . . 1 . 2 . . . 1 Average Overweight (x) . | . . . . 1 2 1 . 1 2 2 2 . . . . . . . . . . . . . . . . . . . . . . Largest Inventory Capacity 25 | 5 15 15 20 20 20 20 20 20 20 20 20 20 20 20 20 20 20 20 20 20 20 20 20 20 20 20 20 20 20 20 20 20 25 Average Capacity 20 | 5 13 15 18 20 20 20 20 20 20 20 20 20 20 20 20 20 20 20 20 20 20 20 20 20 20 20 20 20 20 20 20 20 24 Most Carried 25 | 5 14 15 19 19 20 20 20 20 20 20 20 20 20 20 20 20 20 20 20 20 20 20 20 20 20 20 20 20 20 20 20 20 25 Average Carried 19 | 2 8 14 16 19 19 19 15 18 19 19 19 19 19 18 19 19 18 19 19 19 19 19 20 19 18 19 16 19 18 19 19 19 22 Final Capacity 25 | 5 15 15 20 20 20 20 20 20 20 20 20 20 20 20 20 20 20 20 20 20 20 20 20 20 20 20 20 20 20 20 20 20 25 Final Carried 20 | 5 14 15 19 19 20 20 10 20 20 20 18 20 20 20 20 20 20 20 20 20 20 20 20 20 18 20 16 20 20 20 20 20 16 Class Distribution -------------------- 20% | Botlord-Tank 16% | Scavenger-Tank 13% | Bothacker-Tank 11% | Mutant 8% | Scavenger-Gunner 5% | Bothacker-Mutant 5% | Scavenger-Mutant 4% | Scavenger-Skirmisher 4% | Bothacker-Skirmisher 3% | Bothacker-Gunner Dominant Class ---------------- Mutant | -10/Materials Mutant | -10/Mines Mutant | -10/Exiles Mutant | -9/Mines Skirmisher | -8/Materials Bothacker-Skirmisher | -8/Garrison Bothacker-Skirmisher | -8/Materials Bothacker-Mutant | -8/Garrison Bothacker-Tank | -7/Factory Bothacker-Tank | -7/Waste Bothacker-Gunner | -7/Factory Bothacker-Tank | -7/Garrison Bothacker-Tank | -6/Factory Scavenger-Tank | -6/Waste Scavenger-Tank | -6/Factory Bothacker-Tank | -6/Garrison Bothacker-Tank | -5/Factory Bothacker-Tank | -5/Garrison Botlord-Tank | -4/Factory Scavenger-Gunner | -4/Waste Scavenger-Gunner | -4/Factory Scavenger-Gunner | -4/Garrison Botlord-Mutant | -4/Factory Botlord-Tank | -4/Garrison Botlord-Tank | -3/Research Botlord-Tank | -3/Garrison Botlord-Tank | -3/Research Scavenger-Skirmisher | -3/Testing Scavenger-Tank | -3/Garrison Scavenger-Tank | -2/Research Botlord-Tank | -2/Garrison Botlord-Tank | -1/Access Scavenger-Tank | -1/Command Resources | -11 -10 -10 -10 -9 -8 -8 -8 -8 -7 -7 -7 -7 -6 -6 -6 -6 -5 -5 -4 -4 -4 -4 -4 -4 -3 -3 -3 -3 -3 -2 -2 -1 -1 ----------- Run | Yrd Mat Min Exi Min Mat Gar Mat Gar Fac Was Fac Gar Fac Was Fac Gar Fac Gar Fac Was Fac Gar Fac Gar Res Gar Res Tes Gar Res Gar Acc Com Matter Collected 22176 | 321 337 110 . 120 436 934 757 637 . 190 252 555 304 238 234 483 667 971 1859 135 81 718 30 951 . 885 555 560 782 557 1229 754 5534 Remotely 430 | . . . . . . . . . . . . . . . . . . . . . . . . . . . . . . . . . 430 Salvage Created 32502 | 162 327 106 . 25 677 673 945 764 . 202 249 906 322 525 267 1280 552 561 2338 655 229 1382 117 1132 . 460 1747 1388 2720 663 1731 1975 7422 Parts 1228 | 9 16 9 . 8 35 45 45 24 . 5 16 38 10 10 20 74 26 28 84 16 8 52 9 52 . 22 53 32 51 38 57 61 275 Haulers Intercepted 5 | . 1 . . . 2 . 1 . . . . . . . . . . . . . . . . . . . 1 . . . . . . Recyclers Shooed 15 | 1 . . . . 2 . 1 . . . . . . . . . 3 . . . . . . . . . . 1 . 3 . 4 . Parts Field Recycled . | . . . . . . . . . . . . . . . . . . . . . . . . . . . . . . . . . . Retrieved Matter . | . . . . . . . . . . . . . . . . . . . . . . . . . . . . . . . . . . Parts Self-Destructed . | . . . . . . . . . . . . . . . . . . . . . . . . . . . . . . . . . . Prevented . | . . . . . . . . . . . . . . . . . . . . . . . . . . . . . . . . . . Parts Restored 2 | . . . . . . . . . . . . . . . . . . . . 2 . . . . . . . . . . . . . Broken 2 | . . . . . . . . . . . . . . . . . . . . 2 . . . . . . . . . . . . . Kills | -11 -10 -10 -10 -9 -8 -8 -8 -8 -7 -7 -7 -7 -6 -6 -6 -6 -5 -5 -4 -4 -4 -4 -4 -4 -3 -3 -3 -3 -3 -2 -2 -1 -1 ------- Run | Yrd Mat Min Exi Min Mat Gar Mat Gar Fac Was Fac Gar Fac Was Fac Gar Fac Gar Fac Was Fac Gar Fac Gar Res Gar Res Tes Gar Res Gar Acc Com Combat Hostiles Destroyed 450 | . 4 4 . 4 7 23 19 7 . 1 7 16 5 2 8 28 9 16 28 . 1 24 2 19 . 12 25 14 39 10 21 18 77 Melee 12 | . . . . . . . 2 1 . . . . . . . 1 . . 7 . . . . 1 . . . . . . . . . Guns 115 | . 4 2 . . 6 8 7 6 . . 1 2 2 . . 3 9 16 13 . . . . . . . 3 . 4 2 8 . 19 Cannons 122 | . . . . . . . . . . 1 2 10 3 1 4 9 . . 5 . 1 8 2 8 . 6 7 2 1 7 3 3 39 AOE 106 | . . 2 . 4 1 15 8 . . . 3 4 . . 4 14 . . . . . 13 . 9 . 5 6 5 4 1 3 4 1 Classes Destroyed 25 | 2 5 1 . . 2 1 1 . . 1 . . . . . 2 . . 4 . . 1 . . . 1 1 . 1 . . . 2 Worker 23 | . 1 . . . 1 . 8 . . . . . . . 2 . 3 . 2 . . . . . . . 2 2 . . . . 2 Builder 15 | . . . . . . . 1 . . . . . . . . . 1 . 3 . . . . . . . . 3 . 1 . 6 . Tunneler 4 | 3 . . . . . . . . . . . . . . . . . . . . . . . . . . . . . 1 . . . Hauler 6 | . 1 . . . 2 . 2 . . . . . . . . . . . . . . . . . . . 1 . . . . . . Recycler 19 | 1 1 . . . 2 . 1 . . . . . . . . . . . 2 . 1 . . . . . 1 2 . 1 . 7 . Mechanic 1 | . . . . . . . . . . . . . . . . . . . 1 . . . . . . . . . . . . . . Operator 1 | . 1 . . . . . . . . . . . . . . . . . . . . . . . . . . . . . . . . Drone 11 | . . . . . . . . . . . . . . . . . . . . . . . . . . . 4 . . . . 6 1 Watcher 5 | . 1 . . . 1 . . . . . . . 1 . . . . . 1 . . . . . . . . 1 . . . . . Swarmer 102 | . . 2 . 4 . 7 . 1 . . 3 5 . . 4 18 . 12 4 . . 11 . 3 . 7 2 . 7 2 5 1 4 Cutter 2 | . . . . . . . . . . . . . . . . . . . . . . . . . . 2 . . . . . . . Saboteur 11 | . . . . . . . . . . . . . . . . 3 . . . . . . . 7 . . . . . . . . 1 Grunt 140 | . 4 2 . . 3 8 19 5 . . 2 9 4 . . 4 1 1 6 . . 8 . 10 . . 10 7 14 5 9 3 6 Brawler 12 | . . . . . . . . . . . . . . . . . . . 2 . . . . . . 2 1 1 1 . 1 . 4 Duelist 6 | . . . . . . . . . . . . . . . . . . . 4 . . . . . . . . . . . . . 2 Sentry 37 | . . . . . 3 7 1 1 . . 1 1 . . 1 2 1 2 3 . 1 3 . 2 . . 1 . 6 . . . 1 Demolisher 1 | . . . . . . . . . . . . . . . . . . . 1 . . . . . . . . . . . . . . Specialist 6 | . . . . . . . . . . . . . . . . 1 . . 3 . . . . 2 . . . . . . . . . Hunter 27 | . . . . . 1 . . . . . . . . . 2 . 3 1 . . . 1 1 . . . 2 2 5 . 2 1 6 Programmer 66 | . . . . . . 1 . 1 . . 1 1 1 . 1 1 4 . 5 . . . 1 . . 1 5 4 1 3 4 7 24 Behemoth 6 | . . . . . . . . . . . . . . . . . . . . . . 1 . . . . . . 3 . 1 . 1 Compactor 3 | . . . . . . . . . . 1 . . . 2 . . . . . . . . . . . . . . . . . . . M Guard 2 | . . . . . . . . . . . . . . . . . . . . . . . . . . . . . . . . . 2 Enhanced Q-Series 19 | . . . . . . . . . . . . . . . . . . . . . . . . . . . . . . . . . 19 Combat Programmer 2 | . . . . . . . . . . . . . . . . . . . . . . . . . . . . . . . . . 2 Striker 2 | . . . . . . . . . . . . . . . . . . . . . . . . . . . . . 2 . . . . Guerrilla 1 | . . . . . . . . . . . . . . . . . . . . . . . . . . . . . . . . . 1 Mutant 2 | . . . . . . . . . . . . . . . . . . . . . . . . . . . . . . . . . 2 Best Kill Streak 18 | 2 3 2 . 4 3 7 18 4 . 1 4 4 4 1 5 11 3 5 8 . 1 9 1 5 . 3 8 7 8 5 10 10 6 Combat Bots Only 11 | . 2 2 . 4 2 7 9 4 . 1 4 4 4 1 4 11 2 5 6 . 1 9 1 5 . 3 6 5 8 3 10 5 6 Max Kills in Single Turn 5 | 1 1 1 . 2 1 4 2 1 . 1 3 3 1 1 4 5 2 2 3 . 1 5 1 4 . 3 3 2 2 3 2 3 2 Gunslinging 1 | . . . . . . . . . . . . . . . . . . 1 . . . . . . . . . . . . . . 1 Exploded 5 | . . 1 . 2 1 4 2 . . . 3 3 . . 4 4 . . . . . 5 . 3 . 3 2 1 1 1 1 1 1 Melee 1 | . . . . . . . 1 1 . . . . . . . 1 . . 1 . . . . 1 . . . . . . . . . Uniques/NPCs Destroyed 1 | . . . . . . . . . . . . . . . . . . . . . . . . . . . . . . . . . 1 MAIN.C Shell (-1/Command) Combat | -11 -10 -10 -10 -9 -8 -8 -8 -8 -7 -7 -7 -7 -6 -6 -6 -6 -5 -5 -4 -4 -4 -4 -4 -4 -3 -3 -3 -3 -3 -2 -2 -1 -1 -------- Run | Yrd Mat Min Exi Min Mat Gar Mat Gar Fac Was Fac Gar Fac Was Fac Gar Fac Gar Fac Was Fac Gar Fac Gar Res Gar Res Tes Gar Res Gar Acc Com Hostile Shots Fired 3208 | . 10 23 . 7 25 83 131 55 . . 49 33 16 . 44 89 187 86 470 . 6 51 42 105 . 77 211 76 190 87 164 90 801 Missed 865 | . 1 5 . 1 7 20 25 9 . . 20 7 4 . 14 28 52 23 150 . 1 15 14 29 . 27 38 34 53 21 53 27 187 Intercepted 7 | . . . . . . . . . . . . . . . . . . . . . . . . . . . . . . . . . 7 Hits 2343 | . 9 18 . 6 18 63 106 46 . . 29 26 12 . 30 61 135 63 320 . 5 36 28 76 . 50 173 42 137 66 111 63 614 Melee 46 | . . . . . . 1 . . . . . . . . . 1 . . 27 . . . . . . 3 2 . . . . . 12 Projectile 2297 | . 9 18 . 6 18 62 106 46 . . 29 26 12 . 30 60 135 63 293 . 5 36 28 76 . 47 171 42 137 66 111 63 602 AOE 16 | . . . . . . . . . . . . . . . . . 1 . . . . . . . . 4 . . . . . 2 9 Critical Strikes 149 | . . . . . . 5 3 4 . . 1 . . . . 1 7 2 25 . . 1 2 . . 1 10 2 5 4 7 20 49 Actively Blocked 87 | . . . . . . . 1 . . . . . . . . . . . 12 . . 1 . . . 1 8 1 . 1 3 20 39 Part Disruptions 21 | . . . . . . . . . . . . . . . . . . . 1 . . . . . . . 3 . . 1 . . 16 Damage Taken 47623 | . 98 247 . 41 246 1059 1754 732 . . 334 337 218 18 426 798 1707 1394 4943 . 114 1200 579 1052 . 967 3028 816 2715 795 1604 1249 19152 Core 3199 | . . 11 . 7 29 134 292 68 . . 49 60 . . 18 16 145 152 266 . . 55 19 52 . 17 239 16 102 . 114 6 1332 Absorbed by Shields 4857 | . . . . . . . . . . . . . . . . . . 45 394 . . . . 475 . 632 712 . 626 807 924 242 . Reduced by Siege Mode 908 | . . . . . . . . . . . . . 24 . 31 47 21 6 87 . . 34 . 3 . 24 231 4 30 31 41 . 294 Redirected to Shielding 191 | . 3 . . . . . 111 17 . . . . . . . . . . . . . . . . . . . . . . . . 60 Ignored by Resistances 2874 | . . . . . . . . . . . . . . . . . 1190 . 804 . . . . . . . . . . . . . 880 Regen/Repaired (Parts) 9128 | . . . . . . . 62 . . . . . . . . . 18 . 154 . 344 193 386 . . . . 543 1732 442 781 608 3865 Core Remaining (%) 69 | 100 . . . 92 . . . 4 . . . 84 . . . 96 . 70 . . . . . 65 . . . . 71 . 92 . 16 Volleys Fired 2428 | 17 26 19 . 6 49 71 95 76 5 25 36 79 50 34 33 84 84 110 100 . 18 117 29 126 . 103 117 42 61 32 75 118 591 Largest 4 | 1 2 2 . 2 3 3 3 3 1 2 3 3 3 2 3 3 3 3 4 . 1 2 1 1 . 2 1 2 3 4 3 3 4 Hottest 407 | 20 60 40 . 100 100 140 112 79 5 115 140 140 91 58 213 213 225 151 186 . 120 150 120 120 . 169 250 250 310 183 250 370 407 Shots Fired 3662 | 17 52 36 . 7 117 109 148 94 5 42 46 125 76 35 54 132 122 170 228 3 19 116 29 123 . 104 117 46 95 94 121 127 1053 Gun 1619 | 17 52 34 . 1 115 87 104 87 . . 5 29 26 1 11 17 97 109 166 2 1 . . . . . 3 . 39 45 70 2 499 Cannon 1613 | . . . . . . . . . . 35 18 79 39 28 34 97 4 36 56 1 16 92 24 89 . 61 71 46 56 46 40 100 545 Launcher 89 | . . 2 . 2 . 22 22 . . . 1 2 . . 1 5 5 . . . . 9 . 11 . 5 2 . . . . . . Special 341 | . . . . 4 2 . 22 7 5 7 22 15 11 6 8 13 16 25 6 . 2 15 5 23 . 38 41 . . 3 11 25 9 Kinetic 1504 | 17 51 34 . 1 95 34 51 20 . . 5 29 26 1 11 17 44 91 177 2 1 . . . . . 5 24 51 91 67 . 559 Thermal 1559 | . 1 . . 4 2 1 41 67 . 35 18 79 39 28 34 97 57 54 21 1 16 92 24 82 . 36 43 17 42 . 43 100 485 Explosive 89 | . . 2 . 2 . 22 22 . . . 1 2 . . 1 5 5 . . . . 9 . 11 . 5 2 . . . . . . Electromagnetic 175 | . . . . . 20 52 12 . . . . . . . . . . . 24 . . . . 7 . 25 26 5 2 . . 2 . Robot Hit Streak 58 | 9 7 10 . . 15 14 24 26 3 15 9 17 21 10 11 10 17 12 28 . 3 14 6 12 . 10 22 12 12 16 18 13 58 Robot Miss Streak 12 | 1 2 3 . . 2 3 4 2 2 4 4 2 1 2 4 3 3 5 3 1 2 2 2 3 . 4 3 7 5 4 12 5 7 Penetration Max 2 | . . . . . . . . . . . . . 1 . 1 1 . 1 2 . . . . . . . . . 1 1 1 . . Secondary Targets 12 | . . . . . 1 1 2 1 . . . . . . . . 1 3 . . . . . . . . . . . . . . 3 Max Gunslinging Chain 1 | . . . . . 1 1 1 1 . . . . . . . . 1 1 . . . . . . . . . . . . . . 1 Capacitor 600 | . . . . . . . . . . . . . . . . . . . 24 . 12 89 24 88 . 60 69 . . . . . 234 Autonomous 26 | . . . . . . . . . . . . . . . . . . . . . . . . . . . . . . . 26 . . Shots Hit Robots 2239 | 14 35 25 . . 78 62 99 96 3 33 22 73 38 27 24 67 79 74 185 9 6 56 14 76 . 54 82 16 50 64 89 52 637 Core Hits 1293 | 5 14 7 . 6 30 57 66 29 . 4 13 41 13 4 13 74 38 30 89 5 3 38 3 49 . 24 43 57 85 26 67 56 304 Critical Kills 17 | . . . . . . . 1 . . . 1 . . 1 . 1 . . 2 . . 3 . 1 . 1 . . . . 1 1 4 Critical Parts Destroyed 19 | . . . . . . . . 2 . . . . 2 . . . 1 . 13 . . . . . . . . . . . . . 1 Critical Strikes 70 | . . . . . 1 4 3 10 . . 1 . 2 1 . 1 1 . 19 . . 3 . 3 . 1 2 . . 2 5 1 10 Burn 11 | . . . . . . . 2 7 . . . . . . . . . . . . . . . . . . . . . . 2 . . Meltdown 13 | . . . . . . . . . . . 1 . . 1 . 1 . . . . . 3 . 1 . 1 . . . . . 1 4 Destroy 23 | . . . . . . . . . . . . . 2 . . . 1 . 15 . . . . . . . . . . . 1 . 4 Blast 6 | . . . . . . . . . . . . . . . . . . . . . . . . . . . . . . 2 2 . 2 Corrupt 7 | . . . . . 1 4 . . . . . . . . . . . . . . . . . . . . 2 . . . . . . Smash 4 | . . . . . . . 1 3 . . . . . . . . . . . . . . . . . . . . . . . . . Sever 6 | . . . . . . . . . . . . . . . . . . . 4 . . . . 2 . . . . . . . . . Melee Attacks 158 | . . . . . . 9 14 54 1 . . . . . . . . . 58 10 4 . . 8 . . . . . . . . . Impact 69 | . . . . . . . 14 54 1 . . . . . . . . . . . . . . . . . . . . . . . . Slashing 63 | . . . . . . . . . . . . . . . . . . . 41 10 4 . . 8 . . . . . . . . . Piercing . | . . . . . . . . . . . . . . . . . . . . . . . . . . . . . . . . . . Sneak Attacks 20 | . . . . . . 4 2 1 . . . . . . . . . . 12 . . . . 1 . . . . . . . . . Combat Hostiles 1 | . . . . . . . 1 . . . . . . . . . . . . . . . . . . . . . . . . . . Follow-up Attacks . | . . . . . . . . . . . . . . . . . . . . . . . . . . . . . . . . . . Damage Inflicted 82144 | 164 472 531 . 177 1068 2360 2980 1883 . 889 483 2148 843 747 858 3392 2027 1367 5162 586 227 3725 432 4307 . 2165 3389 2097 4252 2412 3652 2646 24703 Guns 22984 | 164 472 338 . . 1004 725 910 1212 . . 37 358 358 . 207 220 1481 1273 2688 . . . . . . . 208 . 639 969 1680 . 8041 Cannons 33921 | . . . . . . . . . . 889 228 1206 476 747 470 1359 71 94 971 . 213 2181 432 1969 . 851 2012 593 969 1012 877 1252 15049 Explosions 22088 | . . 193 . 177 64 1635 1604 . . . 205 584 . . 161 1813 473 . 589 . . 1544 . 2107 . 1314 1150 1349 2644 397 1095 1394 1596 Melee 2836 | . . . . . . . 464 671 . . . . . . . . . . 892 586 . . . 223 . . . . . . . . . Ramming 315 | . . . . . . . 2 . . . 13 . 9 . 20 . 2 . 22 . 14 . . 8 . . 19 155 . 34 . . 17 Kinetic 23486 | 164 472 338 . . 787 363 293 215 . . 37 358 358 . 207 220 608 1113 2901 . . . . . . . 208 130 896 1981 1630 . 10207 Thermal 40046 | . . . . . 64 . 475 997 . 889 228 1206 476 747 470 1359 944 254 1035 . 213 2181 432 1883 . 546 1594 1639 3267 . 2022 2646 14479 Explosive 12519 | . . 193 . 177 . 1635 1604 . . . 205 584 . . 161 1813 473 . . . . 1544 . 2107 . 1131 495 . . 397 . . . Electromagnetic 2942 | . . . . . 217 362 142 . . . . . . . . . . . 312 . . . . 86 . 488 1073 173 89 . . . . Impact 1135 | . . . . . . . 464 671 . . . . . . . . . . . . . . . . . . . . . . . . . Slashing 1701 | . . . . . . . . . . . . . . . . . . . 892 586 . . . 223 . . . . . . . . . Piercing . | . . . . . . . . . . . . . . . . . . . . . . . . . . . . . . . . . . Highest Corruption 52 | . . . . . 2 5 5 7 1 19 19 3 1 2 2 . 5 . 13 13 16 22 25 26 . 1 13 13 15 6 8 2 52 Average Corruption 11 | . . . . . 1 2 5 5 1 16 10 2 1 1 1 . 4 . 7 13 13 16 23 25 . 1 4 13 14 5 7 1 19 Corruption Purged 87 | . . . . . . . . . . . 18 4 . . 2 . 5 . . . . . . . . . . . . . . . 58 Corruption Blocked . | . . . . . . . . . . . . . . . . . . . . . . . . . . . . . . . . . . Effects 828 | . . . . . 5 32 27 37 2 16 31 1 2 2 1 . 27 . 62 26 25 60 14 91 . 7 10 33 43 3 33 6 232 Message Errors 195 | . . . . . 2 5 9 7 2 3 6 . . . . . 5 . 18 6 9 14 5 22 . 2 5 6 10 1 7 3 48 Matter Fused 195 | . . . . . . 4 6 10 . 5 10 . 1 1 . . 5 . 16 4 5 15 4 26 . 2 3 12 9 1 10 2 44 Heat Flow Errors 89 | . . . . . . 2 2 4 . 1 7 . . 1 . . 2 . 7 4 2 5 2 8 . 2 1 5 4 . 1 1 28 Energy Discharges 89 | . . . . . . 6 3 3 . 1 3 . . . . . 6 . 2 1 4 5 2 6 . 1 1 1 6 1 8 . 29 Parts Rejected 9 | . . . . . . 1 1 1 . 1 . 1 . . . . . . 2 . . . . . . . . . 1 . . . 1 Parts Fused 8 | . . . . . . . . 1 . . . . . . . . . . . . . 2 . 1 . . . . 2 . . . 2 Data Loss (minor) 90 | . . . . . 1 8 2 5 . 1 2 . 1 . . . 6 . 9 4 2 9 . 10 . . . 7 5 . 3 . 15 Data Loss (major) 37 | . . . . . 1 4 2 3 . 2 . . . . . . . . 3 3 . 1 . 5 . . . 1 1 . 2 . 9 Misfires 28 | . . . . . 1 . . 2 . . . . . . 1 . 2 . 2 3 2 2 . 2 . . . 1 3 . 1 . 6 Alerts 20 | . . . . . . . 1 . . . 3 . . . . . 1 . . 1 . . 1 5 . . . . 1 . 1 . 6 Misdirections 5 | . . . . . . . . . . 1 . . . . . . . . 1 . . 1 . 1 . . . . . . . . 1 Weapon Failures 63 | . . . . . . 2 1 1 . 1 . . . . . . . . 2 . 1 6 . 5 . . . . 1 . . . 43 Overload Shots 15 | . . . . . . . . . . . . 2 . . . . 13 . . . . . . . . . . . . . . . . Effects 1 | . . . . . . . . . . . . . . . . . 1 . . . . . . . . . . . . . . . . Heat Surge 1 | . . . . . . . . . . . . . . . . . 1 . . . . . . . . . . . . . . . . Overflow Damage 1475 | . . 20 . . . 2 34 116 . . . 58 3 . 23 1 . 11 164 54 . 146 . 95 . 67 165 20 . 95 16 107 278 Projectiles 694 | . . . . . . . . . . . . 43 3 . 23 . . 11 14 . . 58 . 17 . 50 71 11 . 27 . 88 278 Explosions 537 | . . 20 . . . 2 26 . . . . 15 . . . 1 . . 84 . . 88 . 78 . 17 94 9 . 68 16 19 . Melee 244 | . . . . . . . 8 116 . . . . . . . . . . 66 54 . . . . . . . . . . . . . Knockbacks 40 | . . . . . . . . 1 . . . . . . . . . . 8 . . . . . . . 1 1 2 10 9 . 8 Impact 3 | . . . . . . . . 1 . . . . . . . . . . . . . . . . . . 1 . . 1 . . . Kinetic 36 | . . . . . . . . . . . . . . . . . . . 7 . . . . . . . . 1 2 9 9 . 8 Secondary 1 | . . . . . . . . . . . . . . . . . . . 1 . . . . . . . . . . . . . . Self-Inflicted Damage 1188 | . . . . . . 47 68 . . . 4 21 . . . 118 76 . 34 . . 117 . . . 90 130 74 238 84 9 32 46 Shots 74 | . . . . . . 1 3 . . . . 1 . . . 5 4 . 1 . . 2 . . . 2 6 13 22 1 1 4 8 Rammed 30 | . . . . . 1 . 1 . . . 2 . 1 . . . 1 . 4 . 1 . . 1 . . 1 14 . 2 . . 1 Targets Rammed 33 | . . . . . 1 . 1 . . . 2 . 1 . 1 . 1 . 5 . 1 . . 1 . . 1 15 . 2 . . 1 Kicked 1 | . . . . . . . . . . . . . . . . . . . 1 . . . . . . . . . . . . . . Crushed 2 | . . . . . . . . . . . . . . . 1 . . . . . . . . . . . . 1 . . . . . Highest Temperature 627 | . . 2 . 40 70 289 290 328 . 319 234 238 45 201 278 337 468 229 421 274 418 388 438 377 . 340 495 463 442 330 474 627 541 Average Temperature 110 | . . 2 . 15 25 61 124 103 . 110 94 56 17 47 91 92 169 49 114 69 93 124 139 106 . 124 169 170 164 162 116 120 97 Received Heat Transfer 6121 | . 54 138 . . 99 360 954 318 . . 63 90 63 . 30 147 183 255 612 . 27 141 37 189 . 71 506 78 299 171 129 78 1029 Effects 63 | . . . . . . . 1 1 . 1 . . . . . 1 6 1 3 . 3 2 . . . . 4 3 3 3 1 14 16 Shutdowns 20 | . . . . . . . . . . . . . . . . . 2 . 1 . 2 . . . . . 4 1 1 . 1 5 3 Energy Bleed 6 | . . . . . . . . . . . . . . . . . . . 1 . . 1 . . . . . . 1 . . 1 2 Interference 22 | . . . . . . . 1 1 . . . . . . . . 3 1 . . . . . . . . . 2 . 2 . 4 8 Matter Decay 6 | . . . . . . . . . . 1 . . . . . . 1 . . . 1 . . . . . . . 1 1 . . 1 Short Circuit 2 | . . . . . . . . . . . . . . . . . . . 1 . . 1 . . . . . . . . . . . Damage (minor) 3 | . . . . . . . . . . . . . . . . 1 . . . . . . . . . . . . . . . 1 1 Damage (major) 3 | . . . . . . . . . . . . . . . . . . . . . . . . . . . . . . . . 3 . Damage (core) 1 | . . . . . . . . . . . . . . . . . . . . . . . . . . . . . . . . . 1 Siege Activations 47 | . . . . . . . . . . . . 1 2 . 2 4 4 1 3 . . 3 . 2 . 3 1 2 4 4 1 . 10 Total Turns 793 | . . . . . . . . . . . . 4 31 . 19 32 51 23 76 . . 29 . 15 . 13 80 12 60 63 33 . 252 Longest Duration 100 | . . . . . . . . . . . . 4 24 . 18 16 20 23 48 . . 15 . 12 . 7 80 7 29 37 33 . 100 Martial Activations . | . . . . . . . . . . . . . . . . . . . . . . . . . . . . . . . . . . Shielding Activations . | . . . . . . . . . . . . . . . . . . . . . . . . . . . . . . . . . . Robots Disrupted 1 | . . . . . 1 . . . . . . . . . . . . . . . . . . . . . . . . . . . . Combat Hostiles 1 | . . . . . 1 . . . . . . . . . . . . . . . . . . . . . . . . . . . . Robots Corrupted 12 | . . . . . . . 1 1 . . . . . . . . . . 3 . . . . . . . 5 2 . . . . . Combat Hostiles 10 | . . . . . . . 1 . . . . . . . . . . . 3 . . . . . . . 5 1 . . . . . Parts Fried 19 | . . . . . 3 3 1 1 . . . . . . . . . . 1 . . . . . . 1 4 5 . . . . . Impact Corruptions 8 | . . . . . . . 1 7 . . . . . . . . . . . . . . . . . . . . . . . . . Robots Melted 89 | . . . . . . . 1 1 . . 1 . . 1 . 2 . . . . . 3 . 1 . 1 4 7 30 . 7 12 18 Combat Hostiles 85 | . . . . . . . 1 . . . 1 . . 1 . 1 . . . . . 3 . 1 . 1 4 6 30 . 7 11 18 Parts Melted 344 | . . . . . . . 1 4 . . 2 5 2 1 . 6 1 . 3 . . 8 2 3 . 3 21 35 96 . 37 45 69 Heat Transferred 82707 | . . . . . . . 1295 2738 . 1550 350 2000 700 1150 700 2100 1384 409 1050 . 185 1628 370 1553 . 396 3763 7683 17798 . 8052 10488 15365 Parts Sabotaged 3 | . . . . . . . . . . . . . . . . 3 . . . . . . . . . . . . . . . . . Parts Stolen . | . . . . . . . . . . . . . . . . . . . . . . . . . . . . . . . . . . Parts Stripped . | . . . . . . . . . . . . . . . . . . . . . . . . . . . . . . . . . . Power Chain Reactions 2 | . . . . . 1 . . . . . . . . . . . . . . . . . . . . 1 . . . . . . . Alert | -11 -10 -10 -10 -9 -8 -8 -8 -8 -7 -7 -7 -7 -6 -6 -6 -6 -5 -5 -4 -4 -4 -4 -4 -4 -3 -3 -3 -3 -3 -2 -2 -1 -1 ------- Run | Yrd Mat Min Exi Min Mat Gar Mat Gar Fac Was Fac Gar Fac Was Fac Gar Fac Gar Fac Was Fac Gar Fac Gar Res Gar Res Tes Gar Res Gar Acc Com Maximum Alert Level 5 | . . . . . . 4 2 3 2 . . 4 2 . . 4 2 4 3 1 . 4 3 5 5 5 5 4 5 4 5 3 4 Low Security (%) 31 | 100 100 100 . 100 100 18 33 18 . 100 100 10 . 100 100 13 83 17 . 71 100 24 . . . . . . . . . . 17 Level 1 3 | . . . . . . 2 34 4 . . . 12 14 . . 6 . 2 . 28 . 6 . . . . . . . . . . . Level 2 16 | . . . . . . 30 32 24 100 . . 7 85 . . 28 16 33 31 . . 1 . . . . . . . . . . 33 Level 3 23 | . . . . . . 18 . 52 . . . 47 . . . 49 . 39 68 . . 23 100 12 . . . 78 10 . 15 100 24 Level 4 14 | . . . . . . 30 . . . . . 22 . . . 1 . 7 . . . 44 . 18 92 10 10 21 32 100 57 . 24 Level 5 11 | . . . . . . . . . . . . . . . . . . . . . . . . 69 7 89 89 . 56 . 27 . . High Security . | . . . . . . . . . . . . . . . . . . . . . . . . . . . . . . . . . . Max Security . | . . . . . . . . . . . . . . . . . . . . . . . . . . . . . . . . . . Peak Influence 3479 | 5 95 88 . 105 55 1331 652 1095 598 167 98 1209 634 126 106 1109 581 1110 831 285 32 1532 1052 2785 1608 3479 2483 1273 2106 1370 1729 1074 1436 Initial 1956 | . . 3 . . 22 31 648 152 574 167 . 46 634 126 . . 581 106 582 285 2 . 804 720 1566 1206 1956 971 948 1184 1008 1036 660 Average 785 | . 16 18 . 11 7 702 284 636 537 72 10 760 465 57 46 632 188 632 703 139 3 854 845 1956 1565 2656 2054 1019 1667 1237 1404 978 827 Influence Increases 24144 | 20 249 148 . 108 262 1410 729 1083 34 1 334 1203 240 3 314 1189 592 1264 1354 4 91 1582 435 2155 72 2393 1529 656 1238 385 811 602 1654 Destroy 0b10 Robot/C 11580 | . 80 100 . 80 140 640 440 480 . . 200 560 160 . 180 600 280 580 660 . 20 660 140 820 20 720 780 280 920 200 460 280 1100 Destroy 0b10 Robot/NC 540 | 20 25 . . . 30 . 65 20 . . 5 15 5 . 10 20 30 . 50 . 5 25 5 10 5 5 30 40 . 15 15 65 25 Destroy Leader 1542 | . 34 20 . 10 56 20 88 20 . . 52 30 22 . 50 40 94 60 122 . 10 40 40 60 . 50 152 52 90 20 70 50 190 Allied During Kill 2402 | . . 14 . . . 59 9 69 . . 5 113 8 . 16 45 21 153 58 . . 125 106 380 25 775 315 . 72 . 20 14 . Successful Hack 525 | . 34 . . . 25 6 16 14 34 . 34 20 17 . 21 . 24 16 34 . 26 44 . 16 18 7 28 . . 24 . 34 33 Select Force Hacks 60 | . 60 . . . . . . . . . . . . . . . . . . . . . . . . . . . . . . . . Disable Machine 750 | . . . . . . 30 . . . . 15 45 . . 15 15 . 45 180 . . 45 60 30 . 120 45 30 . 15 . 30 30 Anti-Garrison Action 3100 | . . . . . . 400 . 300 . . . 300 . . . 300 . 350 . . . 300 . 500 . 350 . . 100 . 200 . . Destroy Structure 3130 | . 1 14 . 18 11 210 66 165 . 1 23 120 28 3 22 169 128 60 130 4 30 343 84 339 4 366 164 54 56 96 16 129 276 Partial Spotted 30 | . . . . . . . 15 . . . . . . . . . . . 15 . . . . . . . . . . . . . . Lose Combat Pursuer 285 | . 15 . . . . 45 30 15 . . . . . . . . 15 . 105 . . . . . . . 15 . . 15 30 . . Active Sensor Use 200 | . . . . . . . . . . . . . . . . . . . . . . . . . . . . 200 . . . . . Influence Decreases 22743 | 20 239 158 . 51 270 128 1825 223 651 479 268 60 1087 365 314 80 1549 306 1649 816 94 50 938 399 1249 522 3281 1118 397 1146 427 1299 1285 Entered New Map 11700 | . . 7 . . 35 18 683 83 521 311 . 20 575 236 . . 528 46 528 530 1 . 728 309 1219 402 1523 756 317 922 337 693 372 Time Decay 6203 | 20 239 151 . 51 226 . 410 . 130 138 124 . 452 129 264 . 526 . 601 286 93 . 150 . 30 . 368 342 . 214 . 506 753 Lost Part 887 | . . . . . 7 90 80 . . . 10 . . . 10 20 40 40 210 . . 30 . 10 . 20 90 20 20 . 10 30 150 Lost Ally 1944 | . . . . . 2 20 102 140 . 30 50 40 60 . 40 60 80 220 160 . . 20 60 80 . 100 450 . 60 10 80 70 10 Purge Threat 2009 | . . . . . . . 550 . . . 84 . . . . . 375 . 150 . . . . . . . 850 . . . . . . Squads Dispatched 93 | . 4 . . . 3 . 5 . . . 6 . 5 . 3 . 4 . 13 . 4 . 5 . 2 . 10 6 . 2 . 6 15 Investigation 12 | . 2 . . . 1 . . . . . . . 2 . . . 1 . 1 . 1 . . . 1 . . 3 . . . . . Extermination 27 | . . . . . . . . . . . 2 . 1 . 1 . 2 . 4 . 1 . 1 . . . 1 1 . 1 . 2 10 Reinforcement 25 | . 2 . . . 1 . 3 . . . 2 . . . 2 . 1 . 2 . 2 . 1 . . . 4 1 . 1 . 2 1 Assault 20 | . . . . . . . . . . . . . 2 . . . . . 4 . . . 2 . . . 5 1 . . . 2 4 Garrison 9 | . . . . . 1 . 2 . . . 2 . . . . . . . 2 . . . 1 . 1 . . . . . . . . Intercept . | . . . . . . . . . . . . . . . . . . . . . . . . . . . . . . . . . . Searches Triggered . | . . . . . . . . . . . . . . . . . . . . . . . . . . . . . . . . . . Unchained Authorized 3 | . . . . . . . . . . . . . . . . . . . . . . . . . . . 1 . . 1 . 1 . Construction Impeded 4 | . . . . . . . . . . . . . . . 1 . 1 . . . 1 . . . . . . . . . . 1 . Haulers Reinforced 6 | . . . . . . . . . . . 1 . . . . . . . . . . . 1 . . . 3 . . 1 . . . Active Scanning Responses 3 | . . . . . . . . . . . . . . . . . . . . . . . . . . . . 2 1 . . . . Cargo Convoy Interrupts . | . . . . . . . . . . . . . . . . . . . . . . . . . . . . . . . . . . Stealth | -11 -10 -10 -10 -9 -8 -8 -8 -8 -7 -7 -7 -7 -6 -6 -6 -6 -5 -5 -4 -4 -4 -4 -4 -4 -3 -3 -3 -3 -3 -2 -2 -1 -1 --------- Run | Yrd Mat Min Exi Min Mat Gar Mat Gar Fac Was Fac Gar Fac Was Fac Gar Fac Gar Fac Was Fac Gar Fac Gar Res Gar Res Tes Gar Res Gar Acc Com Distress Signals 31 | . 2 . . . 3 . 7 1 . . 1 . . . . . 3 . 3 . 1 . 1 . . 1 1 . . . . 1 6 Communications Jammed 378 | . . . . . . . . . . . . . 7 . . . 30 . 151 . 22 . 2 . . . 37 48 . 49 . 1 31 Distress Signals 377 | . . . . . . . . . . . . . 6 . . . 30 . 151 . 22 . 2 . . . 37 48 . 49 . 1 31 Times Spotted 831 | . 13 4 . 4 24 38 40 24 . 6 13 21 8 5 8 32 23 42 74 . 5 23 5 52 . 50 51 23 47 19 34 31 112 Peak Tracking Total 12 | . 3 2 . 4 4 6 5 6 . 2 3 5 1 3 4 4 4 9 7 . 2 4 2 5 . 5 9 8 5 5 12 6 9 Tactical Retreats 17 | . 1 . . . . 1 2 1 . . . . . . . . 1 . 5 . . . . . . . 1 . . 1 1 . 3 Traps | -11 -10 -10 -10 -9 -8 -8 -8 -8 -7 -7 -7 -7 -6 -6 -6 -6 -5 -5 -4 -4 -4 -4 -4 -4 -3 -3 -3 -3 -3 -2 -2 -1 -1 ------- Run | Yrd Mat Min Exi Min Mat Gar Mat Gar Fac Was Fac Gar Fac Was Fac Gar Fac Gar Fac Was Fac Gar Fac Gar Res Gar Res Tes Gar Res Gar Acc Com Traps Triggered 41 | . . . . . 2 6 . 6 2 . 1 . 1 . 1 . . 2 3 . 3 . 1 1 . 5 2 . 1 1 2 . 1 Indirectly 1 | . . . . . . . . . . . . . . . . . . . 1 . . . . . . . . . . . . . . Trap Hack Attempts . | . . . . . . . . . . . . . . . . . . . . . . . . . . . . . . . . . . Triggered . | . . . . . . . . . . . . . . . . . . . . . . . . . . . . . . . . . . Disarmed . | . . . . . . . . . . . . . . . . . . . . . . . . . . . . . . . . . . Reprogrammed . | . . . . . . . . . . . . . . . . . . . . . . . . . . . . . . . . . . Reused . | . . . . . . . . . . . . . . . . . . . . . . . . . . . . . . . . . . Traps Extracted . | . . . . . . . . . . . . . . . . . . . . . . . . . . . . . . . . . . Installed . | . . . . . . . . . . . . . . . . . . . . . . . . . . . . . . . . . . Triggered . | . . . . . . . . . . . . . . . . . . . . . . . . . . . . . . . . . . Machines | -11 -10 -10 -10 -9 -8 -8 -8 -8 -7 -7 -7 -7 -6 -6 -6 -6 -5 -5 -4 -4 -4 -4 -4 -4 -3 -3 -3 -3 -3 -2 -2 -1 -1 ---------- Run | Yrd Mat Min Exi Min Mat Gar Mat Gar Fac Was Fac Gar Fac Was Fac Gar Fac Gar Fac Was Fac Gar Fac Gar Res Gar Res Tes Gar Res Gar Acc Com Machines Disabled 97 | . . . . . . 7 . 3 . . 1 6 . . 1 5 . 8 12 . . 10 4 10 . 13 3 2 2 1 4 2 3 Max in Single Turn 6 | . . . . . . 2 . 1 . . 1 1 . . 1 1 . 1 6 . . 1 . 1 . 2 1 1 1 1 1 1 1 Garrison Access 8 | . . . . . . . . . 1 . . . 1 . . . 2 . . . . . . . . . 2 . . 1 . 1 . Garrison Relay 41 | . . . . . . 5 . 3 . . . 4 . . . 4 . 4 . . . 3 . 6 . 6 . . 2 . 4 . . Machines Repaired . | . . . . . . . . . . . . . . . . . . . . . . . . . . . . . . . . . . Machines Dismantled . | . . . . . . . . . . . . . . . . . . . . . . . . . . . . . . . . . . Machines Sabotaged . | . . . . . . . . . . . . . . . . . . . . . . . . . . . . . . . . . . Overloaded Fab Kills . | . . . . . . . . . . . . . . . . . . . . . . . . . . . . . . . . . . Hacking | -11 -10 -10 -10 -9 -8 -8 -8 -8 -7 -7 -7 -7 -6 -6 -6 -6 -5 -5 -4 -4 -4 -4 -4 -4 -3 -3 -3 -3 -3 -2 -2 -1 -1 --------- Run | Yrd Mat Min Exi Min Mat Gar Mat Gar Fac Was Fac Gar Fac Was Fac Gar Fac Gar Fac Was Fac Gar Fac Gar Res Gar Res Tes Gar Res Gar Acc Com Machines Accessed 107 | . 8 . 2 . 3 4 5 2 4 . 7 4 6 . 4 1 9 2 7 . 4 3 2 3 2 2 5 4 . 4 1 5 4 Terminals 62 | . 6 . . . 2 4 4 2 1 . 3 4 3 . 1 1 3 2 4 . 1 3 . 3 1 2 2 1 . 2 1 4 2 Fabricators 10 | . . . . . . . . . . . 3 . 2 . . . 1 . 1 . 1 . 1 . . . . 1 . . . . . Repair Stations 9 | . . . . . . . . . 2 . . . 1 . . . 1 . 2 . 1 . . . . . . 1 . . . . 1 Recycling Units 4 | . 2 . . . . . . . . . . . . . 1 . . . . . . . . . . . . . . . . . 1 Scanalyzers 3 | . . . . . . . . . . . . . . . 1 . 1 . . . . . . . . . 1 . . . . . . Garrison Access 17 | . . . . . 1 . 1 . 1 . 1 . . . 1 . 3 . . . 1 . 1 . 1 . 2 1 . 2 . 1 . Total Hacks 241 | . 22 . 2 . 10 9 15 8 8 . 21 8 19 . 13 1 17 5 15 . 8 5 4 5 3 4 9 5 . 7 3 9 6 Successful 121 | . 17 . 2 . 6 2 9 2 3 . 15 2 4 . 7 1 10 1 6 . 4 3 2 1 2 2 6 3 . 4 . 5 2 Failed 116 | . 4 . . . 3 7 5 6 5 . 6 6 15 . 6 . 7 4 9 . 4 2 2 4 1 2 2 2 . 3 3 4 4 Catastrophic 21 | . . . . . . 1 . . 1 . 2 2 3 . . . 4 1 2 . 2 1 . . 1 . . . . 1 . . . Database Lockouts 4 | . 1 . . . 1 . 1 . . . . . . . . . . . . . . . . . . . 1 . . . . . . Manual 130 | . 23 . 1 . 9 2 14 2 7 . 15 . 11 . 5 . 7 . 9 . 4 . 3 . 2 . 4 3 . 2 . 3 4 Terminals 144 | . 20 . . . 7 9 13 8 2 . 11 8 8 . 2 1 5 5 8 . 1 5 . 5 1 4 4 1 . 4 3 7 2 Fabricators 29 | . . . . . . . . . . . 8 . 9 . . . 3 . 3 . 3 . 2 . . . . 1 . . . . . Repair Stations 15 | . . . . . . . . . 4 . . . 2 . . . 1 . 4 . 2 . . . . . . 1 . . . . 1 Recycling Units 10 | . 2 . . . . . . . . . . . . . 5 . . . . . . . . . . . . . . . . . 3 Scanalyzers 7 | . . . . . . . . . . . . . . . 4 . 1 . . . . . . . . . 2 . . . . . . Garrison Access 34 | . . . . . 3 . 2 . 2 . 2 . . . 2 . 7 . . . 2 . 2 . 2 . 3 2 . 3 . 2 . Terminal Hacks 35 | . 3 . 2 . 2 2 1 2 . . 4 2 . . 1 1 2 1 1 . . 3 . 1 . 2 . 1 . . . 3 1 Record 2 | . . . 1 . . . . . . . 1 . . . . . . . . . . . . . . . . . . . . . . Part Schematic 1 | . . . . . 1 . . . . . . . . . . . . . . . . . . . . . . . . . . . . Robot Schematic 3 | . 2 . . . . . . . . . 1 . . . . . . . . . . . . . . . . . . . . . . Robot Analysis 4 | . 1 . . . 1 . 1 . . . 1 . . . . . . . . . . . . . . . . . . . . . . Prototype ID Bank 2 | . . . . . . . . . . . 1 . . . . . 1 . . . . . . . . . . . . . . . . Open Door 6 | . . . . . . 1 . . . . . 1 . . . . . . . . . . . . . 1 . 1 . . . 2 . Branch Access Points 1 | . . . . . . . . . . . . . . . . . . . . . . . . . . . . . . . . 1 . Emergency Access Points 4 | . . . . . . 1 . 1 . . . . . . . . . . . . . 1 . . . 1 . . . . . . . Machine Index 1 | . . . . . . . . . . . . . . . . . 1 . . . . . . . . . . . . . . . . Unreport Threat 1 | . . . . . . . . . . . . . . . . . . . 1 . . . . . . . . . . . . . . Zone Layout 1 | . . . . . . . . . . . . . . . 1 . . . . . . . . . . . . . . . . . . Garrison Registry 2 | . . . . . . . . . . . . . . . . 1 . . . . . 1 . . . . . . . . . . . Patrol Navigation 1 | . . . . . . . . . . . . . . . . . . . . . . 1 . . . . . . . . . . . Security Stations 4 | . . . . . . . . 1 . . . 1 . . . . . 1 . . . . . 1 . . . . . . . . . Proto ID Catalog 1 | . . . 1 . . . . . . . . . . . . . . . . . . . . . . . . . . . . . . Disengage Seal 1 | . . . . . . . . . . . . . . . . . . . . . . . . . . . . . . . . . 1 Fabricator Hacks 9 | . . . . . . . . . . . 2 . 1 . . . 2 . 2 . 2 . . . . . . . . . . . . Network Status 1 | . . . . . . . . . . . 1 . . . . . . . . . . . . . . . . . . . . . . Load Schematic 4 | . . . . . . . . . . . . . 1 . . . 1 . 1 . 1 . . . . . . . . . . . . Build 4 | . . . . . . . . . . . 1 . . . . . 1 . 1 . 1 . . . . . . . . . . . . Repair Station Hacks . | . . . . . . . . . . . . . . . . . . . . . . . . . . . . . . . . . . Recycling Unit Hacks . | . . . . . . . . . . . . . . . . . . . . . . . . . . . . . . . . . . Scanalyzer 2 | . . . . . . . . . . . . . . . 1 . . . . . . . . . . . 1 . . . . . . Retrieve Study 2 | . . . . . . . . . . . . . . . 1 . . . . . . . . . . . 1 . . . . . . Garrison Access Hacks 22 | . . . . . 1 . 1 . 1 . 1 . . . 1 . 5 . . . 1 . 1 . 1 . 3 1 . 3 . 2 . Unlock Access 10 | . . . . . 1 . 1 . . . 1 . . . 1 . 1 . . . 1 . 1 . 1 . . 1 . 1 . . . Seal Access 7 | . . . . . . . . . 1 . . . . . . . 2 . . . . . . . . . 2 . . 1 . 1 . Coupler Status 5 | . . . . . . . . . . . . . . . . . 2 . . . . . . . . . 1 . . 1 . 1 . Unauthorized Hacks 53 | . 14 . . . 3 . 7 . 2 . 8 . 3 . 4 . 1 . 3 . 1 . 1 . 1 . 2 1 . 1 . . 1 Terminals 35 | . 12 . . . 2 . 7 . 1 . 5 . 2 . . . . . 2 . . . . . . . 2 . . 1 . . 1 Track 1 | . 1 . . . . . . . . . . . . . . . . . . . . . . . . . . . . . . . . Assimilate 2 | . . . . . 1 . . . . . 1 . . . . . . . . . . . . . . . . . . . . . . Botnet 15 | . 4 . . . . . 3 . 1 . 1 . 2 . . . . . 1 . . . . . . . 1 . . 1 . . 1 Disrupt 1 | . . . . . . . . . . . . . . . . . . . 1 . . . . . . . . . . . . . . Operators 2 | . 1 . . . . . . . . . . . . . . . . . . . . . . . . . 1 . . . . . . Skim 14 | . 6 . . . 1 . 4 . . . 3 . . . . . . . . . . . . . . . . . . . . . . Fabricators 5 | . . . . . . . . . . . 3 . 1 . . . . . . . . . 1 . . . . . . . . . . Prioritize 2 | . . . . . . . . . . . 1 . 1 . . . . . . . . . . . . . . . . . . . . Liberate 2 | . . . . . . . . . . . 1 . . . . . . . . . . . 1 . . . . . . . . . . Haulers 1 | . . . . . . . . . . . 1 . . . . . . . . . . . . . . . . . . . . . . Repair Stations 5 | . . . . . . . . . 1 . . . . . . . 1 . 1 . 1 . . . . . . 1 . . . . . Mechanics 4 | . . . . . . . . . 1 . . . . . . . 1 . 1 . 1 . . . . . . . . . . . . Patch 1 | . . . . . . . . . . . . . . . . . . . . . . . . . . . . 1 . . . . . Recycling Units 6 | . 2 . . . . . . . . . . . . . 4 . . . . . . . . . . . . . . . . . . Monitor 1 | . . . . . . . . . . . . . . . 1 . . . . . . . . . . . . . . . . . . Reject 1 | . . . . . . . . . . . . . . . 1 . . . . . . . . . . . . . . . . . . Recyclers 1 | . . . . . . . . . . . . . . . 1 . . . . . . . . . . . . . . . . . . Mask 1 | . . . . . . . . . . . . . . . 1 . . . . . . . . . . . . . . . . . . Tunnel 2 | . 2 . . . . . . . . . . . . . . . . . . . . . . . . . . . . . . . . Scanalyzers . | . . . . . . . . . . . . . . . . . . . . . . . . . . . . . . . . . . Garrison Access 2 | . . . . . 1 . . . . . . . . . . . . . . . . . . . 1 . . . . . . . . Reprogram 2 | . . . . . 1 . . . . . . . . . . . . . . . . . . . 1 . . . . . . . . Data Cores Recovered . | . . . . . . . . . . . . . . . . . . . . . . . . . . . . . . . . . . Used . | . . . . . . . . . . . . . . . . . . . . . . . . . . . . . . . . . . Hacking Detections 91 | . 6 . . . 3 3 5 2 3 . 7 3 6 . 3 . 8 2 7 . 4 3 2 3 2 2 4 3 . 3 1 3 3 Full Trace Events 10 | . . . . . . 1 . 1 . . . 1 2 . . . 1 1 1 . 1 1 . . . . . . . . . . . Feedback Events 1 | . . . . . . 1 . . . . . . . . . . . . . . . . . . . . . . . . . . . Corruption 1 | . . . . . . 1 . . . . . . . . . . . . . . . . . . . . . . . . . . . Feedback Blocked . | . . . . . . . . . . . . . . . . . . . . . . . . . . . . . . . . . . Robot Schematics Acquired 3 | . 2 . . . . . . . . . 1 . . . . . . . . . . . . . . . . . . . . . . Robots Built 5 | . . . . . . . . . . . . . . . . . 2 . 2 . 1 . . . . . . . . . . . . Authchips 1 | . . . . . . . . . . . . . . . . . 1 . . . . . . . . . . . . . . . . Time 282 | . . . . . . . . . . . . . . . . . 134 . 67 . 81 . . . . . . . . . . . . Total Robot Build Rating 17 | . . . . . . . . . . . . . . . . . 8 . 8 . 1 . . . . . . . . . . . . Part Schematics Acquired 1 | . . . . . 1 . . . . . . . . . . . . . . . . . . . . . . . . . . . . Parts Built 2 | . . . . . . . . . . . 2 . . . . . . . . . . . . . . . . . . . . . . Authchips . | . . . . . . . . . . . . . . . . . . . . . . . . . . . . . . . . . . Time 84 | . . . . . . . . . . . 84 . . . . . . . . . . . . . . . . . . . . . . Total Part Build Rating 8 | . . . . . . . . . . . 8 . . . . . . . . . . . . . . . . . . . . . . Part Studies Acquired 2 | . . . . . . . . . . . . . . . 1 . . . . . . . . . . . 1 . . . . . . Parts Repaired . | . . . . . . . . . . . . . . . . . . . . . . . . . . . . . . . . . . Time . | . . . . . . . . . . . . . . . . . . . . . . . . . . . . . . . . . . Parts Recycled . | . . . . . . . . . . . . . . . . . . . . . . . . . . . . . . . . . . Recycled Matter . | . . . . . . . . . . . . . . . . . . . . . . . . . . . . . . . . . . Retrieved Matter . | . . . . . . . . . . . . . . . . . . . . . . . . . . . . . . . . . . Retrieved Components . | . . . . . . . . . . . . . . . . . . . . . . . . . . . . . . . . . . Parts Scanalyzed . | . . . . . . . . . . . . . . . . . . . . . . . . . . . . . . . . . . Part Schematics Acquired . | . . . . . . . . . . . . . . . . . . . . . . . . . . . . . . . . . . Parts Damaged . | . . . . . . . . . . . . . . . . . . . . . . . . . . . . . . . . . . Bothacking | -11 -10 -10 -10 -9 -8 -8 -8 -8 -7 -7 -7 -7 -6 -6 -6 -6 -5 -5 -4 -4 -4 -4 -4 -4 -3 -3 -3 -3 -3 -2 -2 -1 -1 ------------ Run | Yrd Mat Min Exi Min Mat Gar Mat Gar Fac Was Fac Gar Fac Was Fac Gar Fac Gar Fac Was Fac Gar Fac Gar Res Gar Res Tes Gar Res Gar Acc Com Used RIF Installer 13 | . . . . . . 2 . 1 . . . 1 . . . 1 . 2 . . . 2 . 1 . 1 . . 1 . 1 . . Hotswap 1 | . . . . . . . . 1 . . . . . . . . . . . . . . . . . . . . . . . . . Code Merge 2 | . . . . . . . . . . . . . . . . . . . . . . . . . . . . . 1 . 1 . . Command Fork 1 | . . . . . . 1 . . . . . . . . . . . . . . . . . . . . . . . . . . . Signal Jammer 1 | . . . . . . . . . . . . . . . . . . 1 . . . . . . . . . . . . . . . Zone Cloak 1 | . . . . . . . . . . . . . . . . . . . . . . . . 1 . . . . . . . . . Robot Detection 1 | . . . . . . . . . . . . 1 . . . . . . . . . . . . . . . . . . . . . Watcher Feeds 1 | . . . . . . . . . . . . . . . . . . 1 . . . . . . . . . . . . . . . Patrol Navigation 1 | . . . . . . . . . . . . . . . . . . . . . . 1 . . . . . . . . . . . Structural Interface 1 | . . . . . . . . . . . . . . . . . . . . . . 1 . . . . . . . . . . . Program Shield 1 | . . . . . . . . . . . . . . . . 1 . . . . . . . . . . . . . . . . . Crosswire 1 | . . . . . . . . . . . . . . . . . . . . . . . . . . 1 . . . . . . . Robots Hacked 178 | . . . . . . 4 12 4 2 6 9 11 8 4 3 6 6 12 16 . 1 1 3 11 . 15 14 . . 3 8 14 5 Non-combat 68 | . . . . . . . 7 . 2 . 9 . 7 . 2 . 5 . 10 . 1 1 2 . . . 7 . . 3 . 8 4 Combat 110 | . . . . . . 4 5 4 . 6 . 11 1 4 1 6 1 12 6 . . . 1 11 . 15 7 . . . 8 6 1 Robot Hacks Applied 225 | . . . . . . 4 19 4 2 6 13 11 9 6 4 6 11 13 20 . 1 1 4 12 . 15 28 . . 3 8 17 8 parse_system 13 | . . . . . . . . . . 1 1 . 1 2 . . . 1 . . . . . 1 . 2 . . . . . 3 1 no_distress 1 | . . . . . . . . . . . . . . . . . . . 1 . . . . . . . . . . . . . . generate_echo 1 | . . . . . . . 1 . . . . . . . . . . . . . . . . . . . . . . . . . . find_chute 3 | . . . . . . . . . 1 . . . 1 . . . . . 1 . . . . . . . . . . . . . . deconstruct_machine 10 | . . . . . . . . . . . 3 . 2 . 1 . . . 1 . . . 1 . . . . . . . . 1 1 ignore_repairs 11 | . . . . . . . . . . . . . . . . . . . 6 . . . . . . . . . . . . 5 . map_walls 5 | . . . . . . . . . . . . . . . . . 1 . 1 . . . . . . . . . . . . 3 . map_earth 2 | . . . . . . . . . . . 1 . 1 . . . . . . . . . . . . . . . . . . . . find_dsf 1 | . . . . . . . . . . . . . . . . . . . . . . . . . . . 1 . . . . . . drop_inventory 8 | . . . . . . . . . . . 1 . 1 . . . 2 . 1 . . . 1 . . . 2 . . . . . . ignore_parts 2 | . . . . . . . . . . . 1 . . . . . . . . . . . . . . . . . . 1 . . . deconstruct_bot 1 | . . . . . . . . . . . . . . . . . . . . . . . . . . . . . . . . . 1 purge_threat 22 | . . . . . . . 6 . . . 1 . . . . . 3 . . . . . . . . . 12 . . . . . . disarm_traps 1 | . . . . . . . 1 . . . . . . . . . . . . . . . . . . . . . . . . . . block_reporting 3 | . . . . . . . . . . . 1 . . . . . 1 . . . . . . . . . 1 . . . . . . clear_recycling 1 | . . . . . . . . . . . 1 . . . . . . . . . . . . . . . . . . . . . . map_route 4 | . . . . . . . . . . . . . 1 . . . . . . . . . . . . . 1 . . 2 . . . redirect_shields 1 | . . . . . . . . . . . . . . . . . . . . . . . . . . . 1 . . . . . . ignore_targets 8 | . . . . . . . . . . 5 . . . 3 . . . . . . . . . . . . . . . . . . . emergency_deploy 1 | . . . . . . . . . . . . . . . . . . . . . . . . . . . 1 . . . . . . find_garrison 6 | . . . . . . . 1 . . . . . 1 . 1 . 1 . . . . . 1 . . . 1 . . . . . . scatter_targeting 1 | . . . . . . . . . . . . . . . . 1 . . . . . . . . . . . . . . . . . disrupt_area 2 | . . . . . . . . . . . . . . . . . . . 2 . . . . . . . . . . . . . . amplify_resonance 16 | . . . . . . . . . . . . 3 . . . . . 2 1 . . . . 2 . 3 3 . . . 1 1 . reboot_system 10 | . . . . . . 1 . . . . . 5 . . . . . . . . . . . 1 . . . . . . 2 1 . overwrite_iff 4 | . . . . . . 1 . . . . . . . . . . . 1 1 . . . . . . . 1 . . . . . . streamctrl_low 5 | . . . . . . . . . . . . . . . . . . . . . . . . . . . . . . . . 1 4 streamctrl_high 3 | . . . . . . . . . . . . . . . . . . 3 . . . . . . . . . . . . . . . formatsys_low 18 | . . . . . . . 5 . 1 . 3 . . 1 1 . 2 . 2 . 1 1 . . . . 1 . . . . . . formatsys_high 61 | . . . . . . 2 5 4 . . . 3 1 . 1 5 1 6 3 . . . 1 8 . 10 3 . . . 5 2 1 Relay Couplers Released 172 | . . . . . . 23 . 12 2 . . 15 2 . . 16 1 17 . . . 14 . 24 . 22 . . 7 . 17 . . Machine Destruction 168 | . . . . . . 19 . 12 2 . . 15 2 . . 16 1 17 . . . 14 . 24 . 22 . . 7 . 17 . . Programmers 4 | . . . . . . 4 . . . . . . . . . . . . . . . . . . . . . . . . . . . Attached 61 | . . . . . . 2 8 4 1 3 1 3 2 . 1 2 3 2 3 . . 1 1 6 . 6 2 . . 2 6 1 1 Crosswired 6 | . . . . . . . . . . . . . . . . . . . . . . . . . . 3 . . 2 . 1 . . Merged Code Value 139 | . . . . . . . . . . . . . . . . . . . . . . . . . . . . . . . 123 . 16 Fabnet Peak Effective % . | . . . . . . . . . . . . . . . . . . . . . . . . . . . . . . . . . . Robots Rewired 34 | . . . . . . 2 . 3 . . . . . . . 3 . 3 . . . 5 . 7 . 8 . . 3 . . . . Allies Hacked 6 | . . . . . . . . 1 . . . . . . . . 1 1 . . . . 1 . . . . . 1 . 1 . . Hacks Repelled . | . . . . . . . . . . . . . . . . . . . . . . . . . . . . . . . . . . Allies | -11 -10 -10 -10 -9 -8 -8 -8 -8 -7 -7 -7 -7 -6 -6 -6 -6 -5 -5 -4 -4 -4 -4 -4 -4 -3 -3 -3 -3 -3 -2 -2 -1 -1 -------- Run | Yrd Mat Min Exi Min Mat Gar Mat Gar Fac Was Fac Gar Fac Was Fac Gar Fac Gar Fac Was Fac Gar Fac Gar Res Gar Res Tes Gar Res Gar Acc Com Total Allies 160 | . . 2 . . 1 5 12 9 1 . 6 5 1 1 2 8 6 15 10 . 2 6 3 19 2 23 5 . 3 . 6 4 3 Largest Group 28 | . . 2 2 . 1 4 6 4 2 1 3 5 3 1 2 4 5 5 5 . 1 5 7 13 13 28 22 . 3 . 2 2 3 Highest-Rated Group 1652 | . . 42 42 . 15 93 71 148 38 23 64 144 99 32 64 146 116 205 264 . 36 303 401 794 754 1652 1329 . 204 . 122 103 92 Highest-Rated Ally 142 | . . 31 31 . 15 39 18 85 23 23 32 39 41 32 32 41 37 68 58 . 36 116 116 116 116 119 142 . 68 . 64 64 64 Total Orders 319 | . . . . . . . 17 5 . . 5 22 . . 2 17 11 1 4 . 3 10 1 8 . 6 . . . 1 2 2 202 STAY 195 | . . . . . . . 7 2 . . 3 11 . . 1 9 5 1 2 . . 4 . 4 . 3 . . . . 1 1 141 ROAM 8 | . . . . . . . 2 2 . . . . . . . . 1 . . . . . . . . . . . . . . . 3 FOLLOW 43 | . . . . . . . 4 1 . . 2 11 . . 1 8 3 . . . . 4 . 4 . 3 . . . . 1 1 . AID 11 | . . . . . . . 3 . . . . . . . . . 2 . 2 . 2 1 1 . . . . . . . . . . DROP 5 | . . . . . . . 1 . . . . . . . . . . . . . . . . . . . . . . . . . 4 PICKUP 46 | . . . . . . . . . . . . . . . . . . . . . . . . . . . . . . . . . 46 COLLECT 1 | . . . . . . . . . . . . . . . . . . . . . . . . . . . . . . . . . 1 EXPLORE 8 | . . . . . . . . . . . . . . . . . . . . . 1 1 . . . . . . . 1 . . 5 RETURN 2 | . . . . . . . . . . . . . . . . . . . . . . . . . . . . . . . . . 2 Ally Attacks 801 | . . 2 . . 2 31 30 46 . 8 10 51 10 27 11 23 53 54 37 . . 30 30 72 18 99 109 . 14 . 28 6 . Total Damage 27235 | . . 21 . . 62 608 545 1215 . 222 312 892 371 1216 310 478 695 1287 1536 . . 1584 1427 2957 522 3722 5098 . 1024 . 880 251 . Kills 186 | . . 1 . . . 9 6 17 . . 4 13 3 3 1 2 7 14 7 . . 9 6 22 2 26 23 . 7 . 2 2 . Allies Corrupted 7 | . . . . . . . . 1 . . . . . . . . 2 . . . . . . . . 2 1 . . . 1 . . Allies Melted 2 | . . . . . . . . . . . . . . . . . . . . . . . . . . . 1 . . . . . 1 Intel | -11 -10 -10 -10 -9 -8 -8 -8 -8 -7 -7 -7 -7 -6 -6 -6 -6 -5 -5 -4 -4 -4 -4 -4 -4 -3 -3 -3 -3 -3 -2 -2 -1 -1 ------- Run | Yrd Mat Min Exi Min Mat Gar Mat Gar Fac Was Fac Gar Fac Was Fac Gar Fac Gar Fac Was Fac Gar Fac Gar Res Gar Res Tes Gar Res Gar Acc Com Active Infowar (turns) 15265 | 95 581 704 1100 772 1103 133 79 . . . 171 1547 817 7 498 1213 695 . 1059 125 470 1180 319 831 . . 46 763 163 . . 4 790 Optics 796 | . . . . . . . 79 . . . . . . . . . . . . . . . . . . . . . . . . . 717 Sensors 712 | . . . . . . . . . . . 139 . 269 . . . . . . . 168 14 118 . . . . . . . . 4 . A.S.S. 972 | . . . . . . . . . . . . . . . . . . . . . . . . . . . 46 763 163 . . . . Terrain 3031 | 95 198 575 1100 3 1052 8 . . . . . . . . . . . . . . . . . . . . . . . . . . . Structural 719 | . . . . . . . . . . . . . . . . . . . 719 . . . . . . . . . . . . . . Traps 2 | . . . . . . . . . . . . . . . . . . . 2 . . . . . . . . . . . . . . Seismic 2078 | 89 581 129 . 769 385 125 . . . . . . . . . . . . . . . . . . . . . . . . . . . Machine Analysis 2 | . . . . . . . . . . . . . 2 . . . . . . . . . . . . . . . . . . . . Cloaking 1192 | . . . . . . . . . . . . 73 . . 144 36 . . 554 125 260 . . . . . . . . . . . . Jamming 7500 | . . . . . . . . . . . 32 1547 815 7 374 1213 695 . 204 . 210 1180 319 831 . . . . . . . . 73 Robot Analysis Total 4 | . 1 . . . 1 . 1 . . . 1 . . . . . . . . . . . . . . . . . . . . . . Derelict Logs Recovered 2 | . . 2 . . . . . . . . . . . . . . . . . . . . . . . . . . . . . . . Drone Launches 8 | . . . . . . . . . . . . . . . . . . . . . 2 2 . . . . . . . 2 . . 2 Drone Recoveries 4 | . . . . . . . . . . . . . . . . . . . . . 2 . . . . . . . . 1 . . 1 Exploration | -11 -10 -10 -10 -9 -8 -8 -8 -8 -7 -7 -7 -7 -6 -6 -6 -6 -5 -5 -4 -4 -4 -4 -4 -4 -3 -3 -3 -3 -3 -2 -2 -1 -1 ------------- Run | Yrd Mat Min Exi Min Mat Gar Mat Gar Fac Was Fac Gar Fac Was Fac Gar Fac Gar Fac Was Fac Gar Fac Gar Res Gar Res Tes Gar Res Gar Acc Com Turns Passed 36908 | 194 1286 704 1100 772 1103 1734 1061 1265 264 308 839 1547 1138 304 632 1215 1462 1325 1938 625 656 1353 319 1882 70 1326 841 772 1026 446 1156 1362 4883 Spaces Moved 16879 | 91 567 401 538 271 568 790 398 522 183 145 537 838 606 119 324 565 718 626 790 325 317 667 152 880 44 750 408 372 455 188 552 493 1679 Core 2 | 2 . . . . . . . . . . . . . . . . . . . . . . . . . . . . . . . . . Treads 14112 | 89 567 401 538 271 6 416 318 9 . . . 660 606 119 324 565 718 626 698 325 317 667 152 880 44 750 408 372 455 188 552 493 1578 Legs 193 | . . . . . . . . . . . . . . . . . . . 92 . . . . . . . . . . . . . 101 Wheels 2239 | . . . . . 562 121 . 513 183 145 537 178 . . . . . . . . . . . . . . . . . . . . . Hover 333 | . . . . . . 253 80 . . . . . . . . . . . . . . . . . . . . . . . . . . Flight . | . . . . . . . . . . . . . . . . . . . . . . . . . . . . . . . . . . Fastest Speed 50 | 50 160 160 160 240 130 112 166 115 130 130 130 130 160 160 160 160 160 160 160 170 166 166 167 153 150 145 145 145 145 155 155 160 110 Average Speed 163 | 157 160 160 201 240 145 181 174 130 130 144 130 154 160 160 160 160 160 160 171 170 170 166 167 165 150 147 147 145 160 155 157 160 184 Slowest Speed 320 | 160 160 160 240 240 240 320 250 320 130 160 130 160 160 160 160 160 240 160 320 170 250 167 167 247 150 150 225 145 305 155 160 163 247 Overloaded Moves . | . . . . . . . . . . . . . . . . . . . . . . . . . . . . . . . . . . Propulsion Burnouts . | . . . . . . . . . . . . . . . . . . . . . . . . . . . . . . . . . . Robots Hopped . | . . . . . . . . . . . . . . . . . . . . . . . . . . . . . . . . . . Potential Cave-ins 28 | . . . . . . . . . . . . . . . 2 . . . . . . . . . . . . . . 3 . 8 15 Cave-ins Triggered 1 | . . . . . . . . . . . . . . . . . . . . . . 1 . . . . . . . . . . . Exploration Rate (%) 51 | 5 93 63 70 54 37 93 42 79 5 96 18 95 23 74 10 81 27 79 38 96 21 81 11 94 2 85 21 48 50 9 84 27 40 Regions Visited 33 Branch Regions 5 Pre-discovered Areas 7 | . 5 1 1 . . . . . . . . . . . . . . . . . . . . . . . . . . . . . . Known Exits Taken 13 | . 1 . 1 . 1 . 1 . . . 1 . . . 1 . 1 . . . 1 . 1 . 1 . . 1 . 1 . 1 . Unknown Exits Taken 4 | 1 . 1 . 1 . . . . . . . . . . . . . . . . . . . . . . 1 . . . . . . Scrap Searched . | . . . . . . . . . . . . . . . . . . . . . . . . . . . . . . . . . . Spaces Dug 428 | . . . . 13 2 55 . 2 . . 7 1 24 1 10 . 7 1 23 1 14 25 2 39 . 88 11 17 . 3 . 33 49 Terrain Destroyed 1511 | . . 17 . 20 7 139 83 2 . 1 24 4 29 3 25 36 83 10 67 3 15 171 14 268 . 170 64 23 8 35 7 55 128 Melee 18 | . . . . . . . . 2 . . . . . . . . . . 11 1 4 . . . . . . . . . . . . Projectile 467 | . . . . 4 2 . . . . 1 8 1 29 3 14 2 14 10 33 2 11 28 14 17 . 22 20 23 7 18 6 55 123 AOE 1022 | . . 17 . 16 5 139 83 . . . 16 3 . . 11 34 69 . 22 . . 143 . 251 . 148 44 . 1 17 1 . 2 Terrain Rammed . | . . . . . . . . . . . . . . . . . . . . . . . . . . . . . . . . . . Walls Destroyed . | . . . . . . . . . . . . . . . . . . . . . . . . . . . . . . . . . . Machines Disabled . | . . . . . . . . . . . . . . . . . . . . . . . . . . . . . . . . . . Actions | -11 -10 -10 -10 -9 -8 -8 -8 -8 -7 -7 -7 -7 -6 -6 -6 -6 -5 -5 -4 -4 -4 -4 -4 -4 -3 -3 -3 -3 -3 -2 -2 -1 -1 --------- Run | Yrd Mat Min Exi Min Mat Gar Mat Gar Fac Was Fac Gar Fac Was Fac Gar Fac Gar Fac Was Fac Gar Fac Gar Res Gar Res Tes Gar Res Gar Acc Com Total 23749 | 122 895 427 556 377 735 993 610 918 207 205 644 987 714 203 394 757 915 819 1162 384 420 894 215 1278 49 965 644 546 681 277 763 967 3026 Wait 2423 | 2 281 3 . 98 75 14 67 155 7 20 39 29 39 39 14 61 71 44 54 18 50 63 32 88 4 62 83 68 62 38 61 314 368 Move 16852 | 90 566 400 537 270 567 789 397 521 183 144 537 837 606 118 324 564 718 625 790 324 316 666 151 879 43 749 407 371 453 188 551 492 1679 Hop . | . . . . . . . . . . . . . . . . . . . . . . . . . . . . . . . . . . Pick Up 373 | 6 11 2 7 . 9 23 5 19 5 1 9 11 6 2 5 11 8 12 26 9 5 11 . 25 . 11 3 12 12 2 14 8 83 Fast Attach 255 | 6 2 . . . 10 14 5 4 . 2 4 7 2 2 1 8 8 4 32 2 4 6 . 9 . 9 6 8 12 4 15 9 60 Attach 239 | 1 2 . 1 . 2 6 11 7 2 4 3 6 1 1 7 4 6 7 18 6 5 6 . 9 1 4 9 11 15 1 9 8 66 Detach 163 | . 2 . . . 1 5 . 6 . 2 2 6 1 5 2 3 5 . 10 . 4 3 . 8 . 4 10 5 14 1 7 6 51 Swap 245 | . 1 2 3 3 8 19 12 19 1 3 4 4 4 . 4 9 6 9 35 4 8 8 3 15 . 11 5 1 2 5 7 1 29 Drop 375 | . 4 1 8 . 13 27 3 9 3 4 8 8 4 2 3 10 6 8 29 8 5 14 . 22 1 12 3 13 14 4 22 10 97 Fire 2428 | 17 26 19 . 6 49 71 95 76 5 25 36 79 50 34 33 84 84 110 100 . 18 117 29 126 . 103 117 42 61 32 75 118 591 Melee 158 | . . . . . . 9 14 54 1 . . . . . . . . . 58 10 4 . . 8 . . . . . . . . . Ram 1 | . . . . . . . . . . . 1 . . . . . . . . . . . . . . . . . . . . . . Kick 1 | . . . . . . . . . . . . . . . . . . . 1 . . . . . . . . . . . . . . Crush 31 | . . . . . 1 . 1 . . . 1 . 1 . 1 . 1 . 4 . 1 . . 1 . . 1 15 . 2 . . 1 Escape Stasis 53 | . . . . . . 15 . 38 . . . . . . . . . . . . . . . . . . . . . . . . . Rewire 152 | . . . . . . 1 . 10 . . . . . . . 3 2 . 5 3 . . . 88 . . . . 36 . 2 1 1 Trap . | . . . . . . . . . . . . . . . . . . . . . . . . . . . . . . . . . . Miscellaneous . | . . . . . . . . . . . . . . . . . . . . . . . . . . . . . . . . . . Route ------- -11/Scrapyard -10/Materials (discovered 6 exits: [*Mat x3] / *Min x2 / Sub) -10/Mines (discovered 2 exits: [*Mat] / *Exi) -10/Exiles -9/Mines -8/Materials (discovered 4 exits: *Fac x2 / [*Sto] / Gar) -8/Garrison (discovered 3 exits: *Mat x3) -8/Materials -8/Garrison (discovered 2 exits: *Fac x2) -7/Factory -7/Waste -7/Factory -7/Garrison (discovered 3 exits: *Fac x3) -6/Factory (discovered 2 exits: [*Low x2]) -6/Waste -6/Factory (discovered 3 exits: Fac / [*Low] / Gar) -6/Garrison (discovered 3 exits: *Fac x3) -5/Factory (discovered 4 exits: *Fac x2 / [*Upp] / Gar) -5/Garrison (discovered 3 exits: *Fac x3) -4/Factory (discovered 2 exits: [*Upp x2]) -4/Waste -4/Factory (discovered 2 exits: [*Upp] / Gar) -4/Garrison (discovered 3 exits: *Fac x3) -4/Factory -4/Garrison (discovered 3 exits: *Res x3) -3/Research -3/Garrison (discovered 3 exits: *Res x3) -3/Research (discovered 3 exits: *Res / [*Arm] / *Tes) -3/Testing (discovered 2 exits: *Res / Gar) -3/Garrison -2/Research -2/Garrison (discovered 3 exits: *Acc x3) -1/Access -1/Command (discovered 2 exits: Sur x2) By MAIN.C's Side History --------- Turn | Location | Event 6 | -11/Scrapyard | Discovered new exit (range 15) 195 | -11/Scrapyard | Entered Materials 310 | -10/Materials | Build established: Mutant 788 | -10/Materials | Discovered new exit (range 6) 862 | -10/Materials | Discovered new exit (range 16) 1032 | -10/Materials | Discovered new exit (range 13) 1152 | -10/Materials | Central database locked down 1193 | -10/Materials | Learned location of Recycling (-8) 1194 | -10/Materials | Discovered new exit (range 7) 1226 | -10/Materials | Learned location of Subcaves (-10) 1249 | -10/Materials | Identified exit to Mines 1262 | -10/Materials | Identified exit to Subcaves 1266 | -10/Materials | Learned 2 Storage zone layouts 1267 | -10/Materials | Loaded intel: 14 trap records 1481 | -10/Materials | Entered Mines 1488 | -10/Mines | Received a Rocket Launcher from a helpful Derelict 1761 | -10/Mines | Learned 2 Materials zone layouts 2011 | -10/Mines | Learned Materials emergency access door positions 2020 | -10/Mines | Discovered new exit (range 6) 2076 | -10/Mines | Deemed a non-threat by the Exiles lab entrance 2076 | -10/Mines | Discovered new exit (range 5) 2106 | -10/Mines | Learned location of Storage (-8) 2185 | -10/Mines | Entered Exiles 2185 | -10/Exiles | Accompanied by 2 allies 2186 | -10/Exiles | Identified exit to Mines 2215 | -10/Exiles | Led the pair of lost Derelicts to a safe place 2224 | -10/Exiles | Met 8R-AWN 2249 | -10/Exiles | Met EX-HEX 2296 | -10/Exiles | Met EX-BIN 2318 | -10/Exiles | Aligned with FarCom system 2320 | -10/Exiles | Given EX-Vault access code 2361 | -10/Exiles | Opened EX-Vault 2376 | -10/Exiles | Found Firepult 2386 | -10/Exiles | Found XL Autogun Array 2390 | -10/Exiles | Found Cloak of Protection 2420 | -10/Exiles | Warned to stay clear of 0b10 Research branches 2470 | -10/Exiles | Met EX-DEC 2478 | -10/Exiles | Learned location of Zion (-6) 3285 | -10/Exiles | Stole three prototypes: Cloak of Protection, Firepult, XL Autogun Array 3285 | -10/Exiles | Entered Mines 3286 | -9/Mines | Assembled infested the area 3291 | -9/Mines | Assisted by a Guerilla fighting off Assembled 3954 | -9/Mines | Discovered new exit (range 9) 4057 | -9/Mines | Entered Materials 4057 | -8/Materials | Evolved 4 slots: Propulsion x1, Utility x2, Weapon x1 4058 | -8/Materials | Identified exit to Factory 4207 | -8/Materials | Discovered new exit (range 10) 4398 | -8/Materials | Build established: Skirmisher 4443 | -8/Materials | Identified exit to Garrison 4451 | -8/Materials | Discovered exit to Factory (range 7) 4536 | -8/Materials | Central database locked down 5121 | -8/Materials | Garrison activated, responded to threat 5160 | -8/Materials | Entered Garrison 5272 | -8/Garrison | Installed Relay Interface Framework 5284 | -8/Garrison | Build established: Scavenger-Skirmisher 5292 | -8/Garrison | Triggered checkpoint 5327 | -8/Garrison | Garrison Relay disabled 5484 | -8/Garrison | Triggered checkpoint 5509 | -8/Garrison | Triggered checkpoint 5549 | -8/Garrison | Destroyed 7 combat bots 5676 | -8/Garrison | Discovered new exit (range 10) 5796 | -8/Garrison | Triggered checkpoint 5800 | -8/Garrison | Lost 4 parts (1n1u2w) 5862 | -8/Garrison | Garrison Relay disabled 6038 | -8/Garrison | Triggered checkpoint 6157 | -8/Garrison | Discovered new exit (range 10) 6215 | -8/Garrison | Garrison Relay disabled 6278 | -8/Garrison | Triggered checkpoint 6324 | -8/Garrison | Triggered checkpoint 6440 | -8/Garrison | P-60 Hacker assimilated allied Trooper 3a 6479 | -8/Garrison | Lost 4 parts (1p1n1u1w) 6668 | -8/Garrison | Triggered checkpoint 6705 | -8/Garrison | Garrison Relay disabled 6789 | -8/Garrison | Discovered new exit (range 13) 6824 | -8/Garrison | Expanded RIF knowledge: Command Fork 6894 | -8/Garrison | Entered Materials 6894 | -8/Materials | Accompanied by 1 ally 7191 | -8/Materials | Build established: Bothacker-Skirmisher 7229 | -8/Materials | Lost 4 allies 7406 | -8/Materials | Central database locked down 7491 | -8/Materials | Garrison activated, responded to threat 7523 | -8/Materials | Core integrity fell below 50% 7556 | -8/Materials | Lost 4 allies 7578 | -8/Materials | Destroyed 9 combat bots 7834 | -8/Materials | Lost 3 parts (1p1n1w) 7883 | -8/Materials | Core integrity fell below 20% 7884 | -8/Materials | Garrison activated, responded to threat 7905 | -8/Materials | Identified exit to Garrison 7955 | -8/Materials | Entered Garrison 7955 | -8/Garrison | Accompanied by 2 allies 8072 | -8/Garrison | Build established: Bothacker-Mutant 8125 | -8/Garrison | Triggered checkpoint 8146 | -8/Garrison | Learned Factory security intel 8165 | -8/Garrison | Spotted B-75 Beast 8182 | -8/Garrison | Assimilated Beast 3a with formatsys_high 8203 | -8/Garrison | Triggered checkpoint 8215 | -8/Garrison | Garrison Relay disabled 8290 | -8/Garrison | Expanded RIF knowledge: Hotswap 8403 | -8/Garrison | Triggered checkpoint 8452 | -8/Garrison | Lost 3 allies 8565 | -8/Garrison | Garrison Relay disabled 8717 | -8/Garrison | Rescued a captive Derelict 8746 | -8/Garrison | Discovered exit to Factory (range 11) 8903 | -8/Garrison | Triggered checkpoint 8973 | -8/Garrison | Triggered checkpoint 9027 | -8/Garrison | Triggered checkpoint 9081 | -8/Garrison | Garrison Relay disabled 9147 | -8/Garrison | Discovered exit to Factory (range 10) 9220 | -8/Garrison | Entered Factory 9220 | -7/Factory | Accompanied by 1 ally 9220 | -7/Factory | Evolved 2 slots: Utility x1, Weapon x1 9222 | -7/Factory | FarCom data flow suspended 9484 | -7/Factory | Sucked down chute 9484 | -7/Factory | Entered Waste 9499 | -7/Waste | EMP discharged 9511 | -7/Waste | System corruption reached 10% 9532 | -7/Waste | Spotted C-40 Crusher 9533 | -7/Waste | Spotted C-40 Crusher 9537 | -7/Waste | Spotted C-40 Crusher 9550 | -7/Waste | Build established: Bothacker-Tank 9551 | -7/Waste | Spotted C-40 Crusher 9559 | -7/Waste | 2 allies followed down the chute 9599 | -7/Waste | EMP discharged 9613 | -7/Waste | Spotted C-40 Crusher 9627 | -7/Waste | Spotted C-40 Crusher 9643 | -7/Waste | Destroyed C-40 Crusher 9650 | -7/Waste | Found Damper Plating 9698 | -7/Waste | Discovered new exit (range 13) 9699 | -7/Waste | EMP discharged 9792 | -7/Waste | Entered Factory 9954 | -7/Factory | Found Rocket Array 10050 | -7/Factory | Build established: Bothacker-Gunner 10236 | -7/Factory | Fabricated System Restoration Module (x2) 10630 | -7/Factory | Identified exit to Garrison 10631 | -7/Factory | Entered Garrison 10631 | -7/Garrison | Accompanied by 1 ally 10783 | -7/Garrison | Triggered checkpoint 10794 | -7/Garrison | Garrison Relay disabled 10843 | -7/Garrison | Rescued a captive Derelict 10848 | -7/Garrison | Rescued a captive Derelict 10980 | -7/Garrison | Triggered checkpoint 11005 | -7/Garrison | Triggered checkpoint 11095 | -7/Garrison | Triggered checkpoint 11099 | -7/Garrison | Triggered checkpoint 11163 | -7/Garrison | Garrison Relay disabled 11222 | -7/Garrison | Discovered new exit (range 14) 11237 | -7/Garrison | Expanded RIF knowledge: Robot Detection 11256 | -7/Garrison | Build established: Bothacker-Tank 11267 | -7/Garrison | Triggered checkpoint 11289 | -7/Garrison | Learned Factory security intel 11505 | -7/Garrison | Triggered checkpoint 11506 | -7/Garrison | Discovered new exit (range 12) 11539 | -7/Garrison | Garrison Relay disabled 11577 | -7/Garrison | Identified exit to Factory 11789 | -7/Garrison | Triggered checkpoint 11790 | -7/Garrison | Garrison Relay disabled 11917 | -7/Garrison | Build established: Botlord-Tank 11923 | -7/Garrison | Discovered exit to Factory (range 8) 12178 | -7/Garrison | Entered Factory 12178 | -6/Factory | Accompanied by 3 allies 12178 | -6/Factory | Evolved 2 slots: Propulsion x1, Utility x1 12233 | -6/Factory | Build established: Bothacker-Tank 12842 | -6/Factory | Discovered new exit (range 59) 13297 | -6/Factory | Discovered new exit (range 16) 13316 | -6/Factory | Sucked down chute 13316 | -6/Factory | Entered Waste 13331 | -6/Waste | EMP discharged 13334 | -6/Waste | Spotted C-40 Crusher 13354 | -6/Waste | Found Quantum Capacitor 13387 | -6/Waste | Allies destroyed C-40 Crusher 13396 | -6/Waste | Spotted C-40 Crusher 13398 | -6/Waste | Spotted C-40 Crusher 13401 | -6/Waste | Spotted C-40 Crusher 13403 | -6/Waste | Destroyed C-40 Crusher 13418 | -6/Waste | Allies destroyed C-40 Crusher 13428 | -6/Waste | Allies destroyed C-40 Crusher 13431 | -6/Waste | EMP discharged 13462 | -6/Waste | Spotted C-40 Crusher 13468 | -6/Waste | Destroyed C-40 Crusher 13487 | -6/Waste | Found Damper Plating 13515 | -6/Waste | Spotted C-40 Crusher 13531 | -6/Waste | EMP discharged 13555 | -6/Waste | Discovered new exit (range 12) 13620 | -6/Waste | Entered Factory 13620 | -6/Factory | Accompanied by 1 ally 13631 | -6/Factory | Build established: Scavenger-Tank 13888 | -6/Factory | Discovered new exit (range 7) 14212 | -6/Factory | Discovered new exit (range 6) 14252 | -6/Factory | Identified exit to Garrison 14252 | -6/Factory | Entered Garrison 14252 | -6/Garrison | Accompanied by 1 ally 14430 | -6/Garrison | Garrison Relay disabled 14440 | -6/Garrison | Destroyed 11 combat bots 14492 | -6/Garrison | Triggered checkpoint 14502 | -6/Garrison | Garrison Relay disabled 14642 | -6/Garrison | Triggered checkpoint 14678 | -6/Garrison | Triggered checkpoint 14743 | -6/Garrison | P-60 Hacker assimilated allied Soldier 5b 14778 | -6/Garrison | Expanded RIF knowledge: Program Shield 14849 | -6/Garrison | Triggered checkpoint 14852 | -6/Garrison | Triggered checkpoint 14938 | -6/Garrison | Triggered checkpoint 15004 | -6/Garrison | Garrison Relay disabled 15129 | -6/Garrison | Discovered new exit (range 14) 15254 | -6/Garrison | Triggered checkpoint 15276 | -6/Garrison | Discovered new exit (range 23) 15276 | -6/Garrison | Discovered new exit (range 26) 15276 | -6/Garrison | Discovered new exit (range 49) 15298 | -6/Garrison | Garrison Relay disabled 15325 | -6/Garrison | Build established: Bothacker-Tank 15467 | -6/Garrison | Entered Factory 15467 | -5/Factory | Accompanied by 2 allies 15467 | -5/Factory | Evolved 2 slots: Power x1, Utility x1 15598 | -5/Factory | Discovered new exit (range 10) 15681 | -5/Factory | Discovered new exit (range 9) 15841 | -5/Factory | Lost 3 allies 16415 | -5/Factory | Discovered new exit (range 5) 16448 | -5/Factory | Build established: Scavenger-Tank 16862 | -5/Factory | Build established: Bothacker-Tank 16875 | -5/Factory | Fabricated P-60 Hacker? 16929 | -5/Factory | Identified exit to Garrison 16929 | -5/Factory | Entered Garrison 16929 | -5/Garrison | Accompanied by 2 allies 16949 | -5/Garrison | Triggered checkpoint 16971 | -5/Garrison | Garrison Relay disabled 16997 | -5/Garrison | Hacker 6a assimilated hostile H-66 Slayer 17041 | -5/Garrison | Lost 5 allies 17171 | -5/Garrison | Spotted B-75 Beast 17195 | -5/Garrison | Allies destroyed B-75 Beast 17211 | -5/Garrison | Triggered checkpoint 17217 | -5/Garrison | Lost 5 allies 17232 | -5/Garrison | Triggered checkpoint 17242 | -5/Garrison | Triggered checkpoint 17281 | -5/Garrison | Lost 3 allies 17364 | -5/Garrison | Discovered new exit (range 8) 17417 | -5/Garrison | Triggered checkpoint 17463 | -5/Garrison | Garrison Relay disabled 17624 | -5/Garrison | Discovered new exit (range 10) 17721 | -5/Garrison | Triggered checkpoint 17756 | -5/Garrison | Garrison Relay disabled 17762 | -5/Garrison | Build established: Bothacker-Gunner 17926 | -5/Garrison | Triggered checkpoint 17961 | -5/Garrison | Learned Factory security intel 17969 | -5/Garrison | Garrison Relay disabled 18027 | -5/Garrison | Discovered new exit (range 10) 18077 | -5/Garrison | Expanded RIF knowledge: Watcher Feeds 18157 | -5/Garrison | Expanded RIF knowledge: Signal Jamming 18254 | -5/Garrison | Entered Factory 18254 | -4/Factory | Accompanied by 2 allies 18254 | -4/Factory | Evolved 2 slots: Propulsion x1, Utility x1 18504 | -4/Factory | First assault squad dispatched 18627 | -4/Factory | Lost 4 parts (2p2u) 18654 | -4/Factory | Build established: Botlord-Tank 18661 | -4/Factory | Discovered new exit (range 26) 19272 | -4/Factory | Lost 4 allies 19334 | -4/Factory | Lost 4 parts (1p2n1u) 19455 | -4/Factory | System corruption reached 10% 19592 | -4/Factory | Lost 6 parts (1p1n1u3w) 19684 | -4/Factory | Found Quantum Capacitor 19846 | -4/Factory | Build established: Scavenger-Mutant 19927 | -4/Factory | Discovered new exit (range 14) 20033 | -4/Factory | Fabricated P-60 Hacker? 20054 | -4/Factory | Garrison activated, responded to threat 20055 | -4/Factory | Lost 3 parts (1p2w) 20183 | -4/Factory | Spotted B-86 Titan 20192 | -4/Factory | Sucked down chute 20192 | -4/Factory | Entered Waste 20192 | -4/Waste | The area was eerily silent 20287 | -4/Waste | Found Prototype Launcher 20287 | -4/Waste | Identified Adv. Micro-nuke Launcher 20468 | -4/Waste | Found Damper Plating 20576 | -4/Waste | Discovered new exit (range 12) 20590 | -4/Waste | Build established: Scavenger-Gunner 20817 | -4/Waste | Entered Factory 21171 | -4/Factory | Discovered new exit (range 7) 21256 | -4/Factory | Found Prototype Processor 21256 | -4/Factory | Identified Exp. Melee Analysis Suite 21428 | -4/Factory | Identified exit to Garrison 21438 | -4/Factory | Fabricated O-16 Technician? 21473 | -4/Factory | Entered Garrison 21482 | -4/Garrison | Spotted B-90 Cyclops 21496 | -4/Garrison | Rewired B-75 Beast 21500 | -4/Garrison | Rewired B-86 Titan 21504 | -4/Garrison | Destroyed B-90 Cyclops 21703 | -4/Garrison | Triggered checkpoint 21726 | -4/Garrison | Garrison Relay disabled 21801 | -4/Garrison | Triggered checkpoint 21898 | -4/Garrison | Triggered checkpoint 21901 | -4/Garrison | Triggered checkpoint 21908 | -4/Garrison | Triggered checkpoint 21931 | -4/Garrison | Destroyed 9 combat bots 21963 | -4/Garrison | Discovered new exit (range 15) 22065 | -4/Garrison | Expanded RIF knowledge: Structural Interface 22140 | -4/Garrison | Expanded RIF knowledge: Patrol Navigation 22229 | -4/Garrison | Triggered checkpoint 22236 | -4/Garrison | Garrison Relay disabled 22545 | -4/Garrison | Triggered checkpoint 22545 | -4/Garrison | Build established: Botlord-Gunner 22577 | -4/Garrison | Discovered new exit (range 27) 22577 | -4/Garrison | Discovered new exit (range 43) 22577 | -4/Garrison | Discovered new exit (range 60) 22589 | -4/Garrison | Garrison Relay disabled 22647 | -4/Garrison | Crushed by falling debris 22686 | -4/Garrison | Lost 3 parts (2u1w) 22826 | -4/Garrison | Entered Factory 22826 | -4/Factory | Accompanied by 5 allies 22965 | -4/Factory | Build established: Botlord-Mutant 23069 | -4/Factory | Garrison activated, responded to threat 23076 | -4/Factory | First assault squad dispatched 23128 | -4/Factory | Identified exit to Garrison 23145 | -4/Factory | Entered Garrison 23145 | -4/Garrison | Accompanied by 3 allies 23174 | -4/Garrison | Found embedded Infiltrators 23191 | -4/Garrison | Triggered checkpoint 23276 | -4/Garrison | Garrison Relay disabled 23287 | -4/Garrison | Garrison Relay disabled 23325 | -4/Garrison | Triggered checkpoint 23539 | -4/Garrison | Triggered checkpoint 23561 | -4/Garrison | Triggered checkpoint 23571 | -4/Garrison | Triggered checkpoint 23603 | -4/Garrison | Lost 3 allies 23625 | -4/Garrison | Found Quantum Capacitor 23648 | -4/Garrison | Discovered new exit (range 13) 23753 | -4/Garrison | Build established: Botlord-Tank 23813 | -4/Garrison | Garrison Relay disabled 23815 | -4/Garrison | Garrison Relay disabled 23921 | -4/Garrison | Learned Research security intel 24202 | -4/Garrison | Expanded RIF knowledge: Zone Cloak 24217 | -4/Garrison | Discovered new exit (range 13) 24254 | -4/Garrison | Lost 4 allies 24293 | -4/Garrison | Build established: Scavenger-Tank 24315 | -4/Garrison | Triggered checkpoint 24593 | -4/Garrison | Triggered checkpoint 24668 | -4/Garrison | Garrison Relay disabled 24681 | -4/Garrison | Triggered checkpoint 24721 | -4/Garrison | Build established: Botlord-Tank 24727 | -4/Garrison | Discovered new exit (range 9) 24753 | -4/Garrison | Spotted B-86 Titan 24779 | -4/Garrison | Assimilated Titan 7b with formatsys_high 24877 | -4/Garrison | Rewired B-86 Titan 25027 | -4/Garrison | Entered Research 25027 | -3/Research | Accompanied by 11 allies 25027 | -3/Research | Evolved 2 slots: Propulsion x1, Utility x1 25075 | -3/Research | Garrison activated, responded to threat 25075 | -3/Research | Identified exit to Garrison 25097 | -3/Research | Entered Garrison 25097 | -3/Garrison | Accompanied by 13 allies 25129 | -3/Garrison | Triggered checkpoint 25187 | -3/Garrison | Triggered checkpoint 25189 | -3/Garrison | H-XX Assembler disabled 25230 | -3/Garrison | Garrison Relay disabled 25269 | -3/Garrison | Lost 4 allies 25327 | -3/Garrison | Triggered checkpoint 25327 | -3/Garrison | Triggered checkpoint 25404 | -3/Garrison | Triggered checkpoint 25506 | -3/Garrison | Found embedded Infiltrators 25533 | -3/Garrison | Triggered checkpoint 25567 | -3/Garrison | Discovered new exit (range 10) 25823 | -3/Garrison | Garrison Relay disabled 25835 | -3/Garrison | Triggered checkpoint 25902 | -3/Garrison | Expanded RIF knowledge: Crosswire 25931 | -3/Garrison | Discovered new exit (range 2) 25961 | -3/Garrison | Rewired Executioner 25963 | -3/Garrison | Rewired Executioner 26070 | -3/Garrison | Triggered checkpoint 26185 | -3/Garrison | Triggered checkpoint 26237 | -3/Garrison | Garrison Relay disabled 26289 | -3/Garrison | Discovered new exit (range 13) 26306 | -3/Garrison | Rescued a captive Derelict 26307 | -3/Garrison | Rescued a captive Derelict 26423 | -3/Garrison | Entered Research 26423 | -3/Research | Accompanied by 22 allies 26529 | -3/Research | Discovered new exit (range 5) 26568 | -3/Research | Central database locked down 26571 | -3/Research | Lost 6 allies 26614 | -3/Research | Unchained authorized (QV-33N) 26641 | -3/Research | Discovered new exit (range 14) 26673 | -3/Research | First assault squad dispatched 26814 | -3/Research | Discovered new exit (range 10) 27087 | -3/Research | System corruption reached 10% 27116 | -3/Research | Found Prototype Device 27116 | -3/Research | Identified Active Sensor Suite 27137 | -3/Research | Lost 6 parts (2p2u2w) 27198 | -3/Research | Lost 3 parts (1p1n1w) 27264 | -3/Research | Entered Testing 27334 | -3/Testing | Found Prototype Protection 27336 | -3/Testing | Found Prototype Protection 27340 | -3/Testing | Found Prototype Protection 27394 | -3/Testing | Identified Hvy. Regenerative Plating 27456 | -3/Testing | Found Portable AFG 27477 | -3/Testing | Build established: Scavenger-Skirmisher 27514 | -3/Testing | First assault squad dispatched 27908 | -3/Testing | Identified SHELL Armor 27965 | -3/Testing | Discovered new exit (range 22) 28027 | -3/Testing | Identified exit to Garrison 28036 | -3/Testing | Entered Garrison 28060 | -3/Garrison | Triggered checkpoint 28140 | -3/Garrison | Triggered checkpoint 28218 | -3/Garrison | Spotted B-86 Titan 28237 | -3/Garrison | Lost 3 allies 28238 | -3/Garrison | Spotted B-86 Titan 28242 | -3/Garrison | Destroyed B-86 Titan 28243 | -3/Garrison | Destroyed B-86 Titan 28279 | -3/Garrison | Destroyed 7 combat bots 28333 | -3/Garrison | Spotted Striker 28338 | -3/Garrison | Destroyed Striker 28370 | -3/Garrison | Spotted Striker 28373 | -3/Garrison | Destroyed Striker 28467 | -3/Garrison | Expanded RIF knowledge: Code Merge 28474 | -3/Garrison | Spotted B-86 Titan 28482 | -3/Garrison | Destroyed B-86 Titan 28604 | -3/Garrison | Destroyed 8 combat bots 28846 | -3/Garrison | Garrison Relay disabled 28871 | -3/Garrison | Garrison Relay disabled 28966 | -3/Garrison | Build established: Scavenger-Tank 29015 | -3/Garrison | Discovered new exit (range 12) 29062 | -3/Garrison | Entered Research 29062 | -2/Research | Evolved 2 slots: Propulsion x1, Utility x1 29220 | -2/Research | Unchained authorized (QV-33N) 29508 | -2/Research | Identified exit to Garrison 29508 | -2/Research | Entered Garrison 29547 | -2/Garrison | Expanded RIF knowledge: Code Merge 29647 | -2/Garrison | Garrison Relay disabled 29659 | -2/Garrison | Triggered checkpoint 29752 | -2/Garrison | Build established: Botlord-Tank 29807 | -2/Garrison | Spotted B-90 Cyclops 29814 | -2/Garrison | Triggered checkpoint 29842 | -2/Garrison | Triggered checkpoint 29844 | -2/Garrison | Triggered checkpoint 29867 | -2/Garrison | Destroyed B-90 Cyclops 29898 | -2/Garrison | Destroyed 10 combat bots 29942 | -2/Garrison | Triggered checkpoint 29952 | -2/Garrison | Garrison Relay disabled 30030 | -2/Garrison | Discovered new exit (range 8) 30206 | -2/Garrison | Triggered checkpoint 30294 | -2/Garrison | Triggered checkpoint 30350 | -2/Garrison | Garrison Relay disabled 30403 | -2/Garrison | Discovered new exit (range 8) 30559 | -2/Garrison | Discovered new exit (range 10) 30580 | -2/Garrison | Garrison Relay disabled 30664 | -2/Garrison | Entered Access 30664 | -1/Access | Accompanied by 1 ally 30664 | -1/Access | Evolved 2 slots: Power x1, Utility x1 30878 | -1/Access | Unchained authorized (QV-33N) 30914 | -1/Access | First assault squad dispatched 31016 | -1/Access | Identified exit to Command 31403 | -1/Access | P-80 Master assimilated allied Serf 10a 32026 | -1/Access | Entered Command 32526 | -1/Command | First assault squad dispatched 32603 | -1/Command | Disengaged cave seal 32734 | -1/Command | Spotted B-99 Colossus 32760 | -1/Command | Destroyed B-99 Colossus 32802 | -1/Command | Found Prototype Ballistic Gun 32802 | -1/Command | Identified Multirail 32826 | -1/Command | Found Hvy. Insulated Plating 32948 | -1/Command | Spotted M Guard 32950 | -1/Command | Spotted Combat Programmer 32950 | -1/Command | Spotted M Guard 32951 | -1/Command | Spotted Combat Programmer 32958 | -1/Command | Destroyed M Guard 32958 | -1/Command | Destroyed Combat Programmer 32959 | -1/Command | Destroyed Combat Programmer 32975 | -1/Command | Destroyed M Guard 32975 | -1/Command | All MAIN.C guards destroyed 33007 | -1/Command | Found Prototype Device 33007 | -1/Command | Identified Thermal Barrier 33020 | -1/Command | Found Prototype Reactor 33020 | -1/Command | Identified Zero-point Reactor 33031 | -1/Command | Found Zero-point Reactor 33047 | -1/Command | Found Exp. Targeting Computer 33057 | -1/Command | Found Zero-point Reactor 33255 | -1/Command | Build established: Scavenger-Tank 33650 | -1/Command | System corruption reached 10% 34554 | -1/Command | P-80 Master assimilated allied Processor 10a 35223 | -1/Command | P-80 Master assimilated allied Serf 10b 35231 | -1/Command | System corruption reached 30% 35389 | -1/Command | Build established: Scavenger-Gunner 35949 | -1/Command | Met MAIN.C 35966 | -1/Command | 0b10 Conduit disabled 36065 | -1/Command | Destroyed MAIN.C Shell 36068 | -1/Command | MAIN.C activated Command garrisons 36069 | -1/Command | Surrendered to MAIN.C 36069 | -1/Command | Loaded intel: 60 machine locations 36069 | -1/Command | Loaded intel: 109 trap records 36069 | -1/Command | Identified exit to Surface 36069 | -1/Command | Discovered exit to Surface (range 78) 36069 | -1/Command | Discovered exit to Surface (range 48) 36099 | -1/Command | Lost 3 parts (1p2n) 36188 | -1/Command | Found Prototype Device 36188 | -1/Command | Identified Exp. System Purifier 36192 | -1/Command | Found Prototype Processor 36192 | -1/Command | Identified Spectral Analyzer 36207 | -1/Command | Found Zero-point Reactor 36212 | -1/Command | Found Prototype Reactor 36212 | -1/Command | Identified Vortex Chain Reactor 36219 | -1/Command | Found Prototype Reactor 36219 | -1/Command | Identified Singularity Reactor 36250 | -1/Command | Found Exp. Core Analyzer 36255 | -1/Command | Found Exp. Core Analyzer 36412 | -1/Command | MAIN.C activated Command garrisons 36452 | -1/Command | Unknown forces attacked Command 36452 | -1/Command | Spotted EQ-000 36452 | -1/Command | Spotted EQ-001 36452 | -1/Command | Spotted EQ-006 36452 | -1/Command | Spotted EQ-003 36452 | -1/Command | Spotted EQ-002 36452 | -1/Command | Spotted EQ-004 36452 | -1/Command | Spotted EQ-005 36452 | -1/Command | Destroyed EQ-006 36454 | -1/Command | Destroyed EQ-002 36455 | -1/Command | Destroyed EQ-004 36458 | -1/Command | Destroyed EQ-003 36510 | -1/Command | Lost 5 parts (2n1u2w) 36551 | -1/Command | Spotted EQ-032 36551 | -1/Command | Spotted EQ-021 36551 | -1/Command | Spotted EQ-020 36551 | -1/Command | Spotted EQ-019 36565 | -1/Command | Core integrity fell below 50% 36569 | -1/Command | Spotted EQ-018 36581 | -1/Command | Destroyed EQ-021 36587 | -1/Command | Destroyed EQ-032 36593 | -1/Command | Spotted EQ-015 36595 | -1/Command | Spotted EQ-008 36604 | -1/Command | Spotted EQ-014 36605 | -1/Command | Spotted EQ-031 36607 | -1/Command | Spotted EQ-017 36609 | -1/Command | Destroyed EQ-008 36614 | -1/Command | Spotted EQ-016 36620 | -1/Command | Destroyed EQ-014 36623 | -1/Command | Spotted EQ-030 36643 | -1/Command | Destroyed EQ-030 36656 | -1/Command | Spotted EQ-040 36656 | -1/Command | Spotted EQ-039 36661 | -1/Command | Destroyed EQ-040 36674 | -1/Command | Spotted EQ-034 36675 | -1/Command | Spotted EQ-038 36676 | -1/Command | Found Multirail 36689 | -1/Command | Destroyed EQ-038 36702 | -1/Command | Spotted EQ-046 36705 | -1/Command | Spotted EQ-026 36720 | -1/Command | Spotted EQ-045 36723 | -1/Command | Destroyed EQ-046 36725 | -1/Command | Spotted EQ-058 36744 | -1/Command | Spotted EQ-047 36764 | -1/Command | Spotted EQ-060 36764 | -1/Command | Spotted EQ-076 36773 | -1/Command | Destroyed EQ-060 36780 | -1/Command | Destroyed EQ-076 36818 | -1/Command | Spotted EQ-082 36823 | -1/Command | Spotted EQ-009 36823 | -1/Command | Spotted EQ-055 36830 | -1/Command | Spotted EQ-053 36847 | -1/Command | Core integrity fell below 20% 36850 | -1/Command | Destroyed EQ-055 36858 | -1/Command | Destroyed EQ-009 36858 | -1/Command | Destroyed EQ-082 36866 | -1/Command | Spotted EQ-084 36866 | -1/Command | Spotted EQ-100 36866 | -1/Command | Spotted EQ-085 36882 | -1/Command | Spotted EQ-079 36883 | -1/Command | Spotted EQ-022 36887 | -1/Command | Spotted EQ-102 36888 | -1/Command | Destroyed EQ-084 36906 | -1/Command | Lost 10 parts (3p2n3u2w) 36906 | -1/Command | Spotted EQ-090 36907 | -1/Command | Destroyed EQ-085 36908 | -1/Command | Attackers retreated from Command 36909 | *** | Fortifying 0b10! Last Messages --------------- 36903_ Dropped Portable AFG. 36904_ Acquired 6 matter. 36905_ System corrupted: Component data lost. 36905_ Portable AFG generating attraction field. 36905_ Slug penetrates EQ-085. 36905_ Slug penetrates Reinforced Barrier. 36906_ Acquired 2 matter. 36907_ Slug penetrates EQ-085. 36907_ EQ-085 destroyed. 36907_ Slug penetrates Reinforced Barrier. 36908_ ALERT: Enemy forces retreating. MAIN.C: I admit your assistance was pivotal here. It looks like I was right to trust you. This attack appears to have been designed to merely test our defenses, although it was nearly effective enough to force me to take the conflict to the next level. Investigating the origins of these bots should be one of our highest priorities... [Achievement: Stronghold] Map ----- +----------------------------------------------------+ | #########/# #?????????????????????????????? | | + / #?????????????????????????????? | | # #### #?????????????????????????????? | | # #??# #?????????????????????????????? | | # #??# #?????????????????????????????? | | #### #??##+####?????????????????????????????? | | #### #???# #????????????????????????????????? | | ##### #????????????????????????????????? | | #????????????????????????????????? | | ###############"####?????????????????????????????? | | ##########???# #?????????????????????????????? | | ##### #?????????????????????????????? | | + % #?###########################?? | | """" ##### #?#?????????????????????????#?? | | """" #???# != #?#?#######################?#?? | | """" #???##%* "#?#?# """" % %%##### | | """" #????#!%% #?#?# " %% #?#?? | | #???## % #?#?# " * % ##### | | #???#" #?#?# " %! %% % % | | ########+#??##" #?#?# = + | | ???????# #???" #?#?# + | | ##?????# #??## #?#?# %% % %##### | | #?????# #??#" #?#?# % %%% % % #?#?? | | #?????# #??#" #?#?#%%%%%% M % %%##### | | #?????# #??## #?#?#%%=%% #?#?? | | ##?????# #??#" #?#?#&@%!%% """"#?#?? | | ???????# #???# ###?#=%%%% """"""#?#?? | | ???????# #???# # #?#*%%% """""#?#?? | | ???????# #???# "##?#%]!% ! =! " #?#?? | | ########+"#### ####%%%=! * !%! #?#?? | | " "" %%==%%] %=! #?#?? | | ### %% " %%=!! ! "" #?#?? | | ?#" !% """ =% %*!! #?#?? | | ### ### #### " #?#?? | | !!" #?# "##?# "" " #?#?? | | ! # #?# "##?# """ " " #?#?? | | ! # #?# ###?#######################?#?? | | # #?# #?#?????????????????????????#?? | | # #?# #?###########################?? | | # #?" #?????????????????????????????? | | =# ### #?????????????????????????????? | | # ### #?????????????????????????????? | | # ## #?????????????????????????????? | | ! # ## #?????????????????????????????? | | # ## #?????????????????????????????? | | # ## #?????????????????????????????? | | #####+####+### #?????????????????????????????? | | ## # #?????????????????????????????? | | ## # #?????????????????????????????? | | #### ## ! # #?????????????????????????????? | +----------------------------------------------------+ Best States ------------- Heat Dissipation 145 Coolant Potential 260 Energy Generation 81 Energy Capacity 1700 Matter Stores 550 Matter Capacity 550 Sight Range 24 Robot Scan Range 20 Terrain Scan Range 16 Terrain Scan Density 10 Jamming Range 16 Cloak Strength 5 Power Amplification 30 EM Shielding 4 Armor Coverage 3200 Resistance: KI 20 Resistance: TH 50 Resistance: EM 90 Core Shielding 40 Weapon Shielding 66 Point Defense Rating 240 Phase Shifting 15 Evasion (%) 55 Targeting Accuracy 12 Core Analysis 12 Armor Integrity Analysis 40 Recoil Reduction 7 Matter Filtering 30 Energy Filtering 50 Particle Charging 20 Salvage Targeting 2 Offensive Hacking 24 Relay Coupler Types 7 Relay Coupler Value 194 Authchip Count 1 Item Schematics ----------------- Huge Storage Unit | -8/Materials | Hacked Robot Schematics ------------------ M-13 Machinist | -10/Materials | Hacked O-16 Technician | -10/Materials | Hacked P-60 Hacker | -7/Factory | Hacked Fabricated ------------ System Restoration Module | x2 | -7/Factory | Preloaded P-60 Hacker | x2 | -5/Factory | Authchip P-60 Hacker | x2 | -4/Factory O-16 Technician | x1 | -4/Factory Repaired ---------- Nothing Studied --------- KE Penetrator | -6/Factory | Hacked Com. HERF Cannon | -3/Research | Hacked Alien Tech Used ----------------- None Achievements -------------- Hackathon Morally Flexible Prodigal Son RIFT Wizard Stronghold Challenges ------------ None Game ------ Seed PointyGravitonKit Manual? 0 Play Time 09:26:30 Cumulative 368.1 hours Start 2025.11.02 @ 22:14:19 End 2025.11.03 @ 22:01:59 Sessions 1 Manual Loads 0 Difficulty Rogue Special Mode None Game No. 174 Rogue 166 Adventurer 8 Explorer 0 Win Type 8 Total 24 Types 13/0/4/2/0/1/1/0/2/1 Lore% 89 Gallery% 88 Achievement% 67 Wizard Run 0 Options --------- Layout 2 ASCII 0 Keyboard 1 Movement Numpad Keybinds 1 Fullscreen 1 Font 24/Smallcaps Map View 50x44 Zoom Use 0% Tactical HUD 1 Map Filters NONE Filters NONE Steam 1 RUN: fafd6c30-1276-4e4b-b4cb-15ad9706ced8